Workbook

Sheet Title I, Part C
M1: Place an "X" by the applicable response.
C2: Virginia Department of Education | M2: X | N2: Original
C3: Office of ESEA Programs
C4: P. O. Box 2120 | N4: Revision:
C5: Richmond, Virginia 23218-2120 | N5: Revision #
N6: Date:
C7: A. COVER PAGE | N7: Explain
C8: Title I, Part C, Education of Migratory Children | N8: Amendment:
N9: Amendment #
C10: 2019-2020 Individual Program Application | N10: Date:
C11: Due by July 1, 2019 | N11: Explain
A12: Under the No Child Left Behind Act of 2001, Public Law 107-110 | C12: Elementary and Secondary Education Act of 1965 (ESEA), as amended by
C13: the Every Student Succeeds Act of 2015 (ESSA), Public Law 114-95
A15: To be Completed by School Division
A16: Applicant (Legal Name of Agency): | H16: Division Number: | J16: Title I, Part C, Coordinator:
A17: ALBEMARLE COUNTY PUBLIC SCHOOLS | H17: =IF(ISBLANK(A17)," ",VLOOKUP(A17,Prefills!A2:B147,2)) -> 2 | J17: Sharon Root
A18: Mailing Address (Street, City or Town, Zip Code): | H18: Phone: | J18: 434-296-3872 | M18: Ext:
A19: 401 McIntire Road Charlottesville, VA 22902 | H19: Email:
H20: root@k12albemarle.org
A23: LOCAL EDUCATIONAL AGENCY CERTIFICATION
A24: Use of Funds: The applicant designated above applies for an allocation of federal assistance as appropriated under ESEA. Funds are available to support local education reform efforts that are consistent with statewide education reform efforts to: 1) provide funding to implement promising education reform programs and school improvement programs based on evidence-based research; 2) provide a continuing source of innovative and educational improvement; 3) meet the educational needs of all students; and 4) develop and implement education programs to improve student achievement and teacher performance. Specific uses of funds for this application are found in the "Guidelines, Instructions, and Assurances" document.
A26: Assurances: The local educational agency assures that the Title I, Part C, program will be administered and implemented in compliance with all applicable statutes, regulations, policies, program plans, and applications. Additionally, the local educational agency agrees by signing below to implement the general and program specific assurances located in the “Application Guidelines, Instructions, and Assurances” document. The assurances and signed cover page are to be retained at the division level.
A28: Certification: We hereby certify that, to the best of our knowledge, the information contained in this application is correct. The agency named above has authorized us as its representatives to file this application, and such action is recorded in the minutes of the School Board meeting held
A29: on | B29: 2019-05-23 | E29: .
A32: Superintendent’s Signature | H32: Board Chairperson’s Signature
A33: Dr. Matthew Haas | H33: Jonno Alcaro
A34: Superintendent’s Name | H34: Board Chairperson’s Name
A35: 2019-06-13 | H35: 2019-06-13
A36: Date | H36: Date
A38: Application Submission, Approval, and LEA Expenditure of Funds: Applications for Federal Funds are due by July 1, 2019. Revisions and Amendments should be submitted in a timely manner. In order for the funds to be expendable by July 1, 2019, the electronic application must be received at the Virginia Department of Education by July 1, 2019, through the file submission process of the Online Management of Education Grant Awards (OMEGA) system.
A41: Page 1
E42: School Division: | G42: =$A$17 -> ALBEMARLE COUNTY PUBLIC SCHOOLS | M42: Division Number: | P42: =$H$17 -> 2
A43: APPLICATION INFORMATION
A45: 2018- 2019 Allocation | C45: 2018-2019 Consolidated Yes or No | E45: PROGRAM | N45: 2019-2020 Allocation
A46: =IF(ISBLANK($A$17)," ",VLOOKUP($H$17,Prefills!$AD$3:$AG$142,4)) -> 124628.94 | C46: No | E46: Title I, Part C, Education of Migratory Children | N46: =SUM(L47:M48) -> 124628 | S46: Yes | T46: No
E47: a. Division Allocation | J47: Subtotal | L47: 124628
E48: b. Regional Program - Total of allocations for all divisions in the regional program | J48: Subtotal | L48: 0
A53: TRANSFERABILITY
A55: Section 5103(b)(2) of the Every Student Succeeds Act allows LEAs to transfer funds between certain qualifying federal programs. If funds are transferred into or out of the Title II, Part A, program, PRIOR APPROVAL IS REQUIRED, and a separate Transferability approval form must be submitted. The transfer request form is available at
A56: Transfer Request Form
A58: Program from which funds will be transferred | G58: Program TO which funds will be transferred: | N58: Amount
A59: Title II, Part A | F59: TO | G59: Title I, Part C, Education of Migratory Children
A61: Program from which funds will be transferred | G61: Program TO which funds will be transferred: | N61: Amount
A62: Title IV, Part A | F62: TO | G62: Title I, Part C, Education of Migratory Children
A64: Page 2
E65: School Division: | G65: =$A$17 -> ALBEMARLE COUNTY PUBLIC SCHOOLS | M65: Division Number: | P65: =$H$17 -> 2
A66: REVISIONS AND AMENDMENTS
A68: Place an "X" in the first box indicating whether it is a revision or amendment. Enter the date of the revision or amendment. Indicate the tab(s) that have been changed. Provide a concise description of changes (for example, "Programmatic Changes--purchase of additional reading materials, object code 6000; Budget Changes--decreased travel budget in object code 5000 and increased materials to purchase additional reading materials in object code 6000"). When completing an amendment, changes to the program overview may be reflected as additions at the end of the narrative. NOTE: Any changes to the program budget should first be reflected in an amended application, followed by a budget transfer within 7 business days of approval of the amended application. Budget transfers will not be accepted without an approved amended application reflecting budget changes.
A69: 1. | B69: Revision | F69: Date:
B70: Amendment | F70: Date:
A72: 2. | B72: Revision | F72: Date:
B73: Amendment | F73: Date:
A75: 3. | B75: Revision | F75: Date:
B76: Amendment | F76: Date:
A78: 4. | B78: Revision | F78: Date:
B79: Amendment | F79: Date:
A81: 5. | B81: Revision | F81: Date:
B82: Amendment | F82: Date:
A84: 6. | B84: Revision | F84: Date:
B85: Amendment | F85: Date:
A87: 7. | B87: Revision | F87: Date:
B88: Amendment | F88: Date:
A90: 8. | B90: Revision | F90: Date:
B91: Amendment | F91: Date:
A93: 9. | B93: Revision | F93: Date:
B94: Amendment | F94: Date:
A96: Page 3
E97: School Division: | G97: =$A$17 -> ALBEMARLE COUNTY PUBLIC SCHOOLS | M97: Division Number: | P97: =$H$17 -> 2
A98: B. PROGRAM OVERVIEW (2 PAGES)
A99: In narrative format:
A100: 1. | B100: Describe how the Migrant Education Program (MEP) identifies new and existing migrant students including birth to age 3, ages 3-5, grades K-12, and out-of-school youth. Include the most common qualifying activities and peak seasons for identification and recruitment.
A101: 2. | B101: Describe the instructional programs or program services to be developed with the requested federal funds based on the results of the division/regional comprehensive needs assessment. Include the process used by the MEP to identify migrant students with the greatest need as priority for services. Include the targeted population(s). (Examples are: ESEA subgroups of students, homeless and migrant students, instructional and administrative staff, paraprofessionals, parents, etc.)
A102: 3. | B102: Discuss how the division/regional MEP will contribute to the attainment of the ESEA goals below.
C103: • Supporting student mastery of K-12 college-and-career ready reading and mathematics standards, and attainment of proficiency or better on corresponding assessments;
C104: • For high schools with a graduating class, supporting student completion of graduation requirements in a timely fashion; and
C105: • Ensuring that students are taught by effective teachers meeting Virginia licensing and professional teaching requirements and providing meaningful professional development and support to promote effective instruction to increase student achievement.
A106: 4. | B106: Provide a description of the needs assessment that was conducted to support the proposed activities.
A107: The Albemarle County Regional Migrant Program includes the counties of Albemarle, Alleghany, Augusta, Chesterfield, Culpeper, Cumberland, Fluvanna, Goochland, Greene, Hanover, Louisa, Lunenburg, Madison, Nelson, Nottoway, Orange, Rockbridge, Southampton, and Stafford, as well as the cities of Charlottesville, Staunton and Waynesboro. This regional program features an adaptable system, designed to locate all eligible Migrant students residing in the region and to evaluate their educational needs, offering services to meet these needs. All students are enrolled in school, or if they are of legal age to drop out, they are offered alternative educational services; our program is designed to fulfill the individual educational needs of each student. The Migrant population fluctuates throughout the year, with the highest number present from June through October, during the fruit harvest seasons. Apple and peach pruning, picking and packing, are the traditional activities, but there are workers arriving to work in grape orchards and vineyards, as well as nurseries, as those industries expand in the region. Migrant students in the area are 99% Hispanic and 99% Limited English Speakers. The majority of the students or their parents have come from Mexico. A Comprehensive Needs Assessment is updated each year to reflect current test scores and changing needs.
A108: English Languages (EL) instruction is the primary educational need for all of the students. Goals for our program are: 1) Help each Migrant student meet the Virginia Standards of Learning 2) Accelerate Learning 3) Motivate each Migrant student to increase her/his language, reading and math skills 4) Increase each student's ability to benefit from the education services by meeting health, clothing and nutritional needs that are identified 5) Involve the students in educational, cultural, social and bilingual experiences and activities which will motivate learning and reinforce self image; 6) Enable parents to become effective supporters of their children's educational success through Parent Involvement, Family Literacy, and Training; and 7) Provide on-site English Language and Family Literacy classes at night for students who work during the day. Methods used to achieve these goals include: 1. During the regular school year, providing the student individual or small group tutorial services and instruction in basic skills, EL, and study skills, both in and out of the school setting in coordination with his/her regular classroom teacher. 2. During the summer, providing summer school opportunities including home/camp-based instruction, Migrant Literacy Net
A109: instruction, night EL classes, inclusion in the Parks & Recreation Program, art camp, computer classes, library reading programs, SAT preparation, internships, and school system-sponsored enrichment programs, and summer school. 3. After-school activities held in camps or homes including tutoring, Migrant Literacy Net instruction, basic skill and EL instruction, SOL preparation, enrichment, nutrition, study skills, and pre-school. 4. Night classes are held in the camps providing EL instruction. 5. Parent Involvement activities include bilingual Family Literacy, PAC meetings, learning celebrations, interpretation at school activities, and Parent Training. 6. Counseling and mentors are provided. 7. Enrollment is encouraged in existing community programs such as Head Start, Bright Stars, private pre-schools, After-School Enrichment, and adult EL classes. 8. Intensive coordination with, and utilization of, all available community resources takes place.
A111: Page 4
E112: School Division: | G112: =$A$17 -> ALBEMARLE COUNTY PUBLIC SCHOOLS | M112: Division Number: | P112: =$H$17 -> 2
A113: B. PROGRAM OVERVIEW (CONTINUED)
A114: 9. Outside funding is secured, e.g., Adult Education Integrated English Language Civics Education (IELCE), Family Literacy, and private foundation grants to improve the quality of services, establish new programs, and pilot new methodologies. 10. Intensive coordination with the local Title I, Title III, K-12 ESOL, Homeless, and Adult Education Programs takes place. A Student Service Plan is developed for each Migrant student. Factors include level of English Language Proficiency, age appropriate grade placement, repeating a grade level, general performance level, Virginia Standards of Learning, attendance, number of schools attended, recent moves, parent evaluation and recommendation, parent educational needs, and classroom teacher evaluation and recommendation. The student's portfolio is evaluated and a plan developed in coordination with the parent, student, and classroom teacher. Types of services and support are assessed and adapted each semester to reflect changes in evaluation factors. The particular assessments vary among school divisions. Tools include Qualitative Reading Inventory, Curriculum-Based Measurement, Developmental Spelling Analysis, Running Record, PALS, Wilson, Woodcock Munoz, RIGBY, MAP SNAP, ACAMP, SRA, WAPT WIDA Model, WIDA Access, Best Literacy, CASAS Life Skills, and SPL leveling.
A115: The goal is to work as a team member with the classroom teacher to develop a coordinated plan to assure meeting VA Performance Standards. Updated spreadsheets are used by the Migrant staff as a team to continuously evaluate the level of services provided, assure full coverage, target needs and make changes as needed. Data utilized includes SOL scores, classroom performance level, English Language Proficiency, frequency and type of direct service, Migrant status, and high school and verified credits. Need factors weighed in determining the extent of service and number of hours of extended learning time include current danger of not meeting the VA Standards of Learning. Priority 1 students are served the most intensively, Priority 2 second, and COS last. Determination to serve a COS is documented. Migrant students are offered some level of service through use of a large volunteer system and extensive collaboration with
A116: other programs. Identification and recruitment of eligible Migrant students are priorities and integral ongoing components with the Albemarle Migrant Education Program. Five objectives have been developed and fully implemented. The "Albemarle Regional ID&R Notebook" is regularly utilized to document the procedures used to meet the objectives and formulate an ongoing workable process with additional goals and specific objectives each year. This ID&R Plan builds upon itself and grows each year to develop better techniques to meet the needs of each school system within the Albemarle region. It has proven to be an adaptable, valuable tool. Specific efforts and content information are documented including dates and names within separate sections of the notebook for each school system. The ID&R Plan is discussed at each staff meeting with up-to-date numbers for the current year. Meetings are held annually with the Virginia Employment Commission (VEC) Farm Placement Specialist, Lawrence Uberte, to share information and identify new locations for recruitment. We stay in regular contact and visit some sites together.
A117: We attend meetings to promote collaboration with others who share our clientele, e.g. Nelson area Hispanic Summit and Head Start. The previous VA State Migrant Recruiter, Elaine Cecelski, supplements recruiting efforts. A prior recruiter, Vanessa Hale, works with Rural Health for Blue Ridge Medical Center and visits Migrant camps with current recruiters. She contacts us if she identifies eligible Migrant students in her role as a Spanish-speaking Outreach Worker.
A119: Page 5
E120: School Division: | G120: =$A$17 -> ALBEMARLE COUNTY PUBLIC SCHOOLS | M120: Division Number: | P120: =$H$17 -> 2
A121: C. COORDINATION OF SERVICES (2 PAGES)
A122: Describe the program services/activities that will be coordinated between the MEP and other federal, state, and local programs. Describe the collaboration of MEP staff, parents, and the community to provide services and activities that will contribute to the attainment of the measurable objectives in the application. In your response, include pertinent information from any of the following that may be applicable:
A123: 1. | C123: Plans for assisting preschool children in the transition from early childhood programs, such as Title I preschool programs, Head Start, or state-funded preschool programs;
A124: 2. | C124: Coordination and integration of federal, state, and local services and programs, including programs supported under ESEA, violence prevention programs, nutrition programs, housing programs, Head Start, adult education, career and technical education, and job training;
A125: 3. | C125: Plans for coordinating and integrating federal program funds in the application used in conjunction with other federal, state, and local funds to support services to students, especially students in the targeted subgroups, in order to increase program effectiveness, eliminate duplication, and reduce fragmentation of the instructional program; and
A126: 4. | C126: Provisions for the arranged transition of students classified as limited English proficient, disabled students, disadvantaged (educationally and economically), migratory students, homeless children and youth, neglected or delinquent youth, and youth who are at-risk of dropping out of school.
A127: Albemarle County Adult Education - English classes, parent training, brochures, website for Spanish-speaking parents of ACPS students, Family Literacy for LEP parents. Albemarle County Bright Stars PreK Program - Referrals and enrollment, pre-school and K-5th grade services. Albemarle County Schools - Professional development, instructional support, office space, computers, technology support, bookkeeping and staff. Albemarle County Title I - Staff, materials, collaboration with techniques and resources. Albemarle County DSS Child Protective Services - Child safety, referrals Albemarle County Health Department - Outreach materials, visit classes, make appointments, offer TB tests, collaboration on community
A128: emergencies, provide information in Spanish on special subjects as needed, such as flu epidemic prevention, flood/hurricane information and preparedness. Albemarle Co. Homeless Education - Tutoring, school supplies, food, clothes, enrollment assistance, transportation, school placement. Albemarle County Schools Food & Nutrition - Automatic free lunch program. Albemarle County Parks & Recreation - Scholarships for enrichment programs. Albemarle High School Spanish Honor Society - Holiday food baskets, hygiene kits, caps, gloves, etc. Albemarle K-12 ESOL, Title III - Identification & recruitment, materials, training, collaboration on children's ESOL homework help room and student learning plans and shared evaluation, data, extended learning time/tutoring, ESOL Summer program, Red Hill Family Night.
A129: Albemarle County Dept. of Transportation - Transportation Albemarle County Dept. of Social Services - Books and tuition if specific training is needed, before school and after school tuition, in-school Family Workers, and food stamps. Anonymous Donors - Money to purchase books and dictionaries for students to keep, and computers. Augusta County Food & Nutrition - Automatic free lunch arrangements. Basic United Methodist Church - Tutoring, school supplies/backpacks, food, clothes. Batesville Ruritan Club - Monetary donations: dictionaries, linens, warm blankets, backpacks/school supplies distributed to students. Be Well Adjusted Chiropractic - Holiday books and toy donations.
A131: Page 6
E132: School Division: | G132: =$A$17 -> ALBEMARLE COUNTY PUBLIC SCHOOLS | M132: Division Number: | P132: =$H$17 -> 2
A133: C. COORDINATION OF SERVICES (CONTINUED)
A134: Blue Ridge Medical Center - Assistance with Medicaid and FAMIS applications, interpretation, teach health issues, make referrals and appointments, arrange transportation, collaborate on camp visits, ID&R referrals, Nelson Hispanic Community Day. Boys and Girls Club - Student tutoring, leadership, enrichment programs. Charlottesville Children's Dental Clinic - Dental care. Charlottesville City Schools Food & Nutrition - Automatic free lunch. Charlottesville Pregnancy Center - Consultations, clothing, cribs, baby supplies. Child Health Partnership (CHIP) - Transportation, interpretation, doctor appointments, case management, and ID&R. Church of the Incarnation - Baby items, donations, GED in Spanish classes. Computers for Kids - Mentorship computer program for students.
A135: Cove Presbyterian Church - Preschool, school supplies, blankets, money donations. Creciendo Juntos (Growing Together) - Education WorkGroup collaboration, provider presentations and forums, ID&R. Crossroads Family Medicine - Recruitment and outreach to Migrant population. Culpeper Health Department - Recruitment and social services. Culpeper Schools Food & Nutrition - Automatic free lunch. Ganelle Cook Scholarship Committee - Collaboration [Community Foundation of the Central Blue Ridge sponsors Ganelle Cook college scholarship for Hispanic students, sponsor of 30 college scholarships] Greater Augusta Volunteer Center (United Way) - Volunteers. 4-H - Scholarships and summer programs for students including leadership training.
A136: Habitat for Humanity - Information and referrals regarding opportunities shared with settled-out families. Insurance for Child Project - Insurance for children. International Rescue Committee - Refugee Dialogue Meeting collaboration on community services. Legal Aid Justice Center - Just Children and Immigrant Youth Project referrals for legal assistance with immigration. Lenscrafters - Vouchers for free eye glasses for uninsured students. Literacy Volunteers - Individual EDL tutoring. Loaves & Fishes - Emergency food. MACAA Head Start - Preschool, ID&TR. Mas Labor - H2A Labor specialist and service provider.
A137: Nelson County Food & Nutrition - Automatic free lunch arrangements. Nelson County Health Department - School physicals, referrals. Nelson Lion's Club - Financial assistance with eye glasses. Piedmont Regional Dental Clinic - Reduced/free dental care for children. Piedmont Virginia Community College - College preparedness workshops, enrollment counseling, summer programs. Ready Kids - Pre-school enrichment groups, referrals for counseling and student support groups. Region 10 - Educational support services in school, in home, out-patient counseling and emergency services. Regional Pre-School Initiative - Referrals, collaboration on student needs and progress. Rockfish Valley Community Center Treasure Chest - Clothes closet.
A138: Salvation Army: - Rentals/utilities deposits, household goods, emergency shelter. School Divisions - Referrals, collaboration on student homework help. Sin Barreras - Advocacy group for community information sessions, volunteer tutors, help with student immigration paperwork. Soccer Organization of C'ville/Albemarle (SOCA) - Scholarships, transportation, outreach. St. John's Catholic Church (Waynesboro) - Tutoring, interpretation, financial assistance. St. Mary's Catholic Church - Hygiene kits, backpacks. Staunton/Augusta Free Clinic - Interpretation, medical assistance. Teens Give - Teen intervention, service opportunities. Telemon - EL classes, workforce development and training. Thomas Jefferson Health Dept. - Medical services (immunizations, CHIP) UVA: Intern Program, Health Systems, Teen Health Center, Law Clinic all provide related services.
A139: VA Farmworker Legal Assistance; VA Workforce Center; VA Employment Commission - all provide assistance. Waynesboro: Adult Learning Center, City Schools EL, Dept. of Social Services, City Schools Food & Nutrition, Health Dept., and Phoenix Program all provide related services. Women's Initiative - Support groups, individual counseling. Young Lives - New mother support groups/mentoring/baby supplies.
A141: Page 7
E142: School Division: | G142: =$A$17 -> ALBEMARLE COUNTY PUBLIC SCHOOLS | M142: Division Number: | P142: =$H$17 -> 2
A143: D. MEASURABLE OBJECTIVES
A145: 1. | B145: Please address how the Measurable Objectives below will guide the development of the Migrant Education Program.
A146: 2. | B146: Describe the evidence-based research services and activities (programs, models, instructional methods and techniques) that will be implemented to achieve each objective and that will be supported by the requested funds.
A147: Measurable Objective 1: | D147: By the end of the 2019-2020 school year and each year thereafter, the percentage of migrant students attaining “Passing” level or above in reading/language arts on the Virginia Standards of Learning will increase by 2 percent annually.
A150: Evidence-based research services and activities that will be implemented and supported by the requested funds to achieve the objective:
A151: Extended learning time will be provided during and after school hours in collaboration with the instruction provided by the classroom teacher. Individual student needs will be addressed in order to support their meeting the Virginia Standards of Learning. Activities will include homework help, enrichment, "sheltered English" content area instruction, EL, bilingual instruction, technology, and study skills. Special emphasis will be placed on the student's next level of reading/language arts SOL exam and SOL specialized preparation materials utilized as needed.
A153: Measurable Objective 2: | D153: By the end of the 2019-2020 school year and each year thereafter, 40 percent of migrant parents who participated in parent activities will report an increased ability to support the reading/language arts achievement of their child.
A156: Evidence-based research services and activities that will be implemented and supported by the requested funds to achieve the objective:
A157: Parents will be encouraged and provided assistance to participate in bilingual Family Literacy programs, EL instruction, Parenting classes, Homework help seminars, Literacy Forums, school meetings, teacher conferences, and Migrant Education meetings. Activities will be held in the camps, homes, and other convenient locations at times requested by the parents. Through collaboration with other agencies, a wide variety of opportunities will be made available at various times and places. Parents will be encouraged to participate in the homework help provided at home. Modeling of good techniques will be demonstrated in the same location and under the same circumstances in which the parent would be providing help. Particular emphasis will be placed on how a non-English speaking parent can assist their child with their reading/language arts in English and the appropriate bilingual materials provided as needed.
A159: Page 8
E160: School Division: | G160: =$A$17 -> ALBEMARLE COUNTY PUBLIC SCHOOLS | M160: Division Number: | P160: =$H$17 -> 2
A161: D. MEASURABLE OBJECTIVES (CONTINUED)
A162: Measurable Objective 3: | D162: By the end of the 2019-2020 school year and each year thereafter, 75 percent of teachers who work with migrant students will report that participation in professional development in reading/language arts has improved their delivery of reading/language arts content instruction.
A165: Evidence-based research services and activities that will be implemented and supported by the requested funds to achieve the objective:
A166: All Migrant staff will be encouraged and paid to attend local, state, and national professional development activities. A Migrant Professional Learning Community (DuFour) meets regularly to share training information and effective strategies, and to work together as a team to brainstorm techniques to use in problematic situations. Information will be shared regularly via e-mail to assure that all staff throughout the 22 school system region knows about available training opportunities, current research, and effective teaching strategies. Collaboration with Title III resources in all school systems will be facilitated.
A168: Measurable Objective 4: | D168: By the end of the 2019-2020 school year and each year thereafter, the percentage of migrant students attaining “Passing” level or above in mathematics on the Virginia Standards of Learning will increase by 2 percent annually.
A171: Evidence-based research services and activities that will be implemented and supported by the requested funds to achieve the objective:
A172: Extended learning time will be provided during and after school hours in extensive collaboration with the instruction provided by the classroom teacher. Individual student needs will be addressed in order to support their meeting the Virginia Standards of Learning. Activities will include homework help, enrichment, "sheltered English" content area instruction, EL, bilingual instruction, technology, and study skills. Special emphasis will be placed on the student's next level of Math SOL exam and specialized SOL preparation materials utilized as necessary.
A174: Page 9
E175: School Division: | G175: =$A$17 -> ALBEMARLE COUNTY PUBLIC SCHOOLS | M175: Division Number: | P175: =$H$17 -> 2
A176: D. MEASURABLE OBJECTIVES (CONTINUED)
A177: Measurable Objective 5: | D177: By the end of the 2019-2020 school year and each year thereafter, 40 percent of migrant parents who participated in parent activities will report an increased ability to support the mathematics achievement of their child.
A180: Evidence-based research services and activities that will be implemented and supported by the requested funds to achieve the objective:
A181: Parents will be encouraged and provided assistance to participate in bilingual Family Literacy Programs, EL instruction, Parenting classes, Homework Help seminars, Literacy Forums, school meetings, teacher conferences, and Migrant Education meetings. Activities will be held in the camps, homes, and other convenient locations at times requested by the parents. Through collaboration with other agencies, a wide variety of opportunities will be made available at various times and places. Parents will be encouraged to participate in the homework help provided at home. Modeling of good techniques will be demonstrated in the same location and under the same circumstances in which the parent would be providing help. Particular emphasis will be placed on how a non-English speaking parent can assist their child with their Math homework and the appropriate bilingual materials provided as needed.
A183: Measurable Objective 6: | D183: By the end of the 2019-2020 school year and each year thereafter, 75 percent of teachers who work with migrant students will report that participation in professional development in mathematics has improved their delivery of mathematics content instruction.
A186: Evidence-based research services and activities that will be implemented and supported by the requested funds to achieve the objective:
A187: All Migrant staff will be encouraged and paid to attend local, state, and national professional development activities. A Migrant Professional Learning Community (DuFour) meets regularly to share training information and effective strategies, and to work together as a team to brainstorm techniques to utilize in problematic situations. Information will be shared regularly via e-mail to assure that all staff throughout the 22 school system region knows about available training opportunities, current research, and effective training strategies. Collaboration with the Math departments in all school systems will be facilitated.
A189: Page 10
E190: School Division: | G190: =$A$17 -> ALBEMARLE COUNTY PUBLIC SCHOOLS | M190: Division Number: | P190: =$H$17 -> 2
A191: D. MEASURABLE OBJECTIVES (CONTINUED)
A192: Measurable Objective 7: | D192: By the end of the 2019-2020 school year and each year thereafter, 75 percent of the students identified as migrant in the graduating class will graduate.
A195: Evidence-based research services and activities that will be implemented and supported by the requested funds to achieve the objective:
A196: Migrant staff will work closely with all middle and high school students, their parents and school counselors to assure credit accrual and that a working plan is in place to assure on-time graduation. Particular emphasis will be placed on dropout prevention, including appropriate academic support, mentoring, vocational training, internships, college visits, college application and scholarship assistance, parent and student information sessions, and summer school tuition, if needed. Staff will meet with students on a bi-annual basis to review their on-time graduation plan, current class completions, grades, goals, and interests. Donated funds will be used to give small gifts, cash and/or scholarships to students when they graduate, to demonstrate to their familiy and friends the importance of this accomplishment.
A198: Measurable Objective 8: | D198: By the end of the 2019-2020 school year and each year thereafter, 25 percent of parents of migrant secondary students who participated in parent activities will report an increased ability to support the education and graduation goals of their child as measured by parent surveys.
A201: Evidence-based research services and activities that will be implemented and supported by the requested funds to achieve the objective:
A202: Migrant staff will work closely with all parents of middle and high school students to make sure they are included, have input, and understand the coursework plans in place for their child to succeed in school and graduate on time. Particular emphasis will be placed on career options, higher education and vocational training opportunities. Transportation, child care, and interpretation will be provided if needed to encourage parents to participate in their child's school parent workshops. Assistance with the FAFSA form will be provided as needed. Parents will be part of the annual review with Migrant staff about the student's on-time graduation plans, current class completions, grades, goals, and interests.
A204: Page 11
E205: School Division: | G205: =$A$17 -> ALBEMARLE COUNTY PUBLIC SCHOOLS | M205: Division Number: | P205: =$H$17 -> 2
A206: D. MEASURABLE OBJECTIVES (CONTINUED)
A207: Measurable Objective 9: | D207: By the end of the 2019-2020 school year and each year thereafter, MEP staff, including, but not limited to teachers and paraprofessionals, will participate in a minimum of two professional development sessions annually related to improving migrant student graduation rates.
A210: Evidence-based research services and activities that will be implemented and supported by the requested funds to achieve the objective:
A211: All Migrant staff will be encouraged and paid to attend local, state, and national professional development activities, especially those addressing dropout prevention. The Migrant Professional Learning Community (DuFour) will address dropout prevention on a regular basis and share training information, effective strategies, and work together as a team to brainstorm techniques to utilize in problematic situations. Information will be shared regularly via e-mail to assure that all staff throughout the 22 school system region knows about available training opportunities, current research, and effective dropout prevention strategies.
A212: Measurable Objective 10: | D212: By the end of the 2019-2020 school year and each year thereafter, the percentage of migrant students entering preschool who have acquired school readiness skills will increase by 2 percent as measured by the PALS-K or Brigance assessments.
A215: Evidence-based research services and activities that will be implemented and supported by the requested funds to achieve the objective:
A216: Preschool children and their parents will be provided preschool materials and instruction for their utilization in the home. Volunteers and tutors work with the preschool children and their parents, modeling effective interactions. Migrant staff ensure that where possible, preschool children are enrolled in quality preschool programs in their communities. Parents are provided detailed information about activities such as library story hours and other community events.
A218: Page 12
E219: School Division: | G219: =$A$17 -> ALBEMARLE COUNTY PUBLIC SCHOOLS | M219: Division Number: | P219: =$H$17 -> 2
A220: D. MEASURABLE OBJECTIVES (CONTINUED)
A221: Measurable Objective 11: | D221: By the end of the 2019-2020 school year and each year thereafter, after participating in parent involvement activities, 10 percent of parents of migrant students entering preschool will report an increased awareness of community resources to help them support the school readiness of their children as measured by parent surveys.
A224: Evidence-based research services and activities that will be implemented and supported by the requested funds to achieve the objective:
A225: Parents will be provided pre-school activities, information and training to work effectively in everyday activities with their pre-school children in basic literacy skills. Collaboration with other agencies will be encouraged and facilitated.
A226: Measurable Objective 12: | D226: By the end of the 2019-2020 school year and each year thereafter, 25 percent of MEP staff will report an increase in their skills to help support the school readiness of migrant students entering preschool as measured by staff surveys.
A229: Evidence-based research services and activities that will be implemented and supported by the requested funds to achieve the objective:
A230: MEP staff will be encouraged to participate in professional development to support school readiness skills.
A232: Page 13
E233: School Division: | G233: =$A$17 -> ALBEMARLE COUNTY PUBLIC SCHOOLS | M233: Division Number: | P233: =$H$17 -> 2
A234: D. MEASURABLE OBJECTIVES (CONTINUED)
A235: Measurable Objective 13: | D235: By the end of the 2019-2020 school year and each year thereafter, 100 percent of dropout students will receive information about educational services specific to their situation.
A238: Evidence-based research services and activities that will be implemented and supported by the requested funds to achieve the objective:
A239: An MP3 player loaded with the "Tennessee Migrant Bilingual Guide English/Spanish" Books 1 and 2 and the written workbooks are given to all out of school youth. EL classes are held in Migrant Camps at times convenient for the students. All dropout students will be provided with information for instructional education opportunities, including EL, GED, literacy and vocational classes.
A241: Page 14
E242: School Division: | G242: =$A$17 -> ALBEMARLE COUNTY PUBLIC SCHOOLS | M242: Division Number: | P242: =$H$17 -> 2
A243: E. BUDGET SUMMARY
A244: TITLE I, Part C
A246: OBJECT CODE | B246: EXPENDITURE | G246: AMOUNT BUDGETED | L246: Does the Budget Summary Match the Detailed Budget?
A247: 1000 - Personal Services | B247: Administration | G247: 24486
B248: Teachers | G248: 9698
B249: Paraprofessionals
B250: Private School Set-Aside
B251: Parent and Family Engagement
B252: Professional Development
B253: Other | G253: 49861
B254: Total Personal Services | G254: =SUM(G247:K253) -> 84045 | L254: =IF(SUM(G254)=SUM(N325),"Yes","No - please review your entries.") -> Yes
A255: 2000 - Employee Benefits | B255: Fixed Charges (Administrative) | G255: 29030
B256: Fixed Charges (Instruction) | G256: 803
B257: Private School Set-Aside
B258: FIxed Charges (Parent and Family Engagement)
B259: FIxed Charges (Professional Development)
B260: Total Employee Benefits | G260: =SUM(G255:K259) -> 29833 | L260: =IF(SUM(G260)=SUM(N340),"Yes","No - please review your entries.") -> Yes
A261: 3000 - Purchased/ Contracted Services | B261: Support Services (Med., Dental)
B262: Evaluation Services
B263: Parent and Family Engagement
B264: Private School Set-Aside
B265: Professional Development | G265: 1000
B266: Teacher Quality (Assessments, Recruitment, etc.)
B267: Tutoring Services | G267: 300
B268: Other | G268: 500
B269: Total Purchased/Contracted Services | G269: =SUM(G261:K268) -> 1800 | L269: =IF(SUM(G269)=SUM(N357,N372),"Yes","No - please review your entries.") -> Yes
A270: 4000 - Internal Services | B270: Public School Choice
B271: Pupil Transportation
B272: Food Services
... 176 more rows

Sheet Transferability
E1: School Division: | G1: ='Title I, Part C'!$A$17 -> ALBEMARLE COUNTY PUBLIC SCHOOLS | L1: Division Number: | N1: ='Title I, Part C'!$H$17 -> 2
A2: H. TRANSFERABILITY
A4: Section 5103(b)(2) of ESSA allows divisions to transfer all or a portion of the funds received from Title II, Part A, or Title IV, Part A, into: Title I, Part A; Title I, Part C; Title I, Part D; Title II, Part A; Title III, Part A; Title IV, Part A; or Title V, Part B.
A6: Complete the tab below if funds will be transferred under Section 5103(b)(2). Please note that prior approval is required to transfer funds. The transfer request form is provided at
A7: Transfer Request Form
D9: Amount Budgeted
D10: Title I, Part A | F10: Title I, Part C | H10: Title I, Part D | J10: Title II, Part A | K10: Title III, Part A | M10: Title IV, Part A | N10: Title V, Part B
D11: Title II, Part A, Transferability | E11: Title IV, Part A, Transferability | F11: Title II, Part A, Transferability Award S367A190044 Project Code APE60014 | G11: Title IV, Part A, Transferability Award S424A190048 Project Code APE60020 | H11: Title II, Part A, Transferability | I11: Title IV, Part A, Transferability | J11: Title IV, Part A, Transferability | K11: Title II, Part A, Transferability | L11: Title IV, Part A, Transferability | M11: Title II, Part A, Transferability | N11: Title II, Part A, Transferability | O11: Title IV, Part A, Transferability
A12: Amount Transferred to Program | F12: ='Title I, Part C'!N59 -> 0 | G12: ='Title I, Part C'!N62 -> 0
A13: OBJECT CODE - EXPENDITURE TYPE
A14: 1000 - Personal Services
A15: Administration | F15: 0 | G15: 0
A16: Teachers | F16: 0 | G16: 0
A17: Paraprofessionals | F17: 0 | G17: 0
A18: Private School Set-Aside | F18: 0 | G18: 0
A19: Parent and Family Engagement | F19: 0 | G19: 0
A20: Professional Development | F20: 0 | G20: 0
A21: Other | F21: 0 | G21: 0
A22: Total Personal Services | F22: =SUM(F15:F21) -> 0 | G22: =SUM(G15:G21) -> 0
A23: 2000 - Employee Benefits
A24: Fixed Charges (Administrative) | F24: 0 | G24: 0
A25: Fixed Charges (Instruction) | F25: 0 | G25: 0
A26: Private School Set-Aside | F26: 0 | G26: 0
A27: Fixed Charges (Parent and Family Engagement) | F27: 0 | G27: 0
A28: Fixed Charges (Professional Development) | F28: 0 | G28: 0
A29: Total Employee Benefits | F29: =SUM(F24:F28) -> 0 | G29: =SUM(G24:G28) -> 0
A30: 3000 - Purchased/Contracted Services
A31: Support Services (Med., Dental) | F31: 0 | G31: 0
A32: Evaluation Services | F32: 0 | G32: 0
A33: Parent and Family Engagement | F33: 0 | G33: 0
A34: Private School Set-Aside | F34: 0 | G34: 0
A35: Professional Development | F35: 0 | G35: 0
A36: Teacher Quality (Assessments, Recruitment, etc.) | F36: 0 | G36: 0
A37: Tutoring Services | F37: 0 | G37: 0
A38: Other | F38: 0 | G38: 0
A39: Total Purchased/Contracted Services | F39: =SUM(F31:F38) -> 0 | G39: =SUM(G31:G38) -> 0
A40: 4000 - Internal Services
A41: Public School Choice Transportation | F41: 0 | G41: 0
A42: Pupil Transportation | F42: 0 | G42: 0
A43: Food Services | F43: 0 | G43: 0
A44: Private School Set-Aside | F44: 0 | G44: 0
A45: Professional Development | F45: 0 | G45: 0
A46: Parent and Family Engagement | F46: 0 | G46: 0
A47: Other | F47: 0 | G47: 0
A48: Total Internal Services | F48: =SUM(F41:F47) -> 0 | G48: =SUM(G41:G47) -> 0
A49: 5000 - Other Charges
A50: Travel (Staff/Administrative) | F50: 0 | G50: 0
A51: Maintenance/Operation of Plant | F51: 0 | G51: 0
A52: Indirect Cost | F52: 0 | G52: 0
A53: Private School Set-Aside | F53: 0 | G53: 0
A54: Professional Development | F54: 0 | G54: 0
A55: Parent and Family Engagement | F55: 0 | G55: 0
A56: Other | F56: 0 | G56: 0
A57: Total Other Charges | F57: =SUM(F50:F56) -> 0 | G57: =SUM(G50:G56) -> 0
A58: 6000 - Materials and Supplies
A59: Administrative | F59: 0 | G59: 0
A60: Instructional | F60: 0 | G60: 0
A61: Private School Set-Aside | F61: 0 | G61: 0
A62: Professional Development | F62: 0 | G62: 0
A63: Parent and Family Engagement | F63: 0 | G63: 0
A64: Other
A65: Total Materials and Supplies | F65: =SUM(F59:F64) -> 0 | G65: =SUM(G59:G64) -> 0
A66: 8000 - Capital Outlay
A67: Equipment for Instruction | F67: 0 | G67: 0
A68: Buildings | F68: 0 | G68: 0
A69: Remodeling | F69: 0 | G69: 0
A70: Professional Development | F70: 0 | G70: 0
A71: Parent and Family Engagement | F71: 0 | G71: 0
A72: All Other Equipment | F72: 0 | G72: 0
A73: Total Capital Outlay | F73: =SUM(F67:F72) -> 0 | G73: =SUM(G67:G72) -> 0
A74: Total Budget | F74: =SUM(F22,F29,F39,F48,F57,F65,F73) -> 0 | G74: =SUM(G22,G29,G39,G48,G57,G65,G73) -> 0
A75: Does Budget Match Amount Transferred to Program? | F75: =IF(F74=F12,"Yes","No") -> Yes | G75: =IF(G74=G12,"Yes","No") -> Yes
A77: Page 30
E78: School Division: | G78: ='Title I, Part C'!$A$17 -> ALBEMARLE COUNTY PUBLIC SCHOOLS | L78: Division Number: | N78: ='Title I, Part C'!$H$17 -> 2
A80: DETAILED BUDGET BREAKDOWN
A81: Include a detailed breakdown of the budget categories for Object Codes 1000-6000 and 8000, as shown on pages 28-29.
A83: DETAILED BUDGET DESCRIPTION OF OBJECT CODE 1000
A84: If applicable, indicate the positions and FTEs supported with funds from this program.
A87: Item Description | H87: Funding Source | K87: FTEs | M87: Total Cost
I97: Total for Object Code: | K97: =SUM(K88:L96) -> 0 | M97: =SUM(M88:M96) -> 0
A100: DETAILED BUDGET DESCRIPTION OF OBJECT CODE 2000
A101: Indicate the fixed charge categories (such as FICA, health insurance, etc.) and specify the amount of each.
A104: Item Description | J104: Funding Source | M104: Total Cost
K113: Total for Object Code: | M113: =SUM(M105:M112) -> 0
A115: Page 31
E116: School Division: | G116: ='Title I, Part C'!A17 -> ALBEMARLE COUNTY PUBLIC SCHOOLS | L116: Division Number: | N116: ='Title I, Part C'!$H$17 -> 2
A117: JUSTIFICATION FOR PROFESSIONAL DEVELOPMENT - OBJECT CODE 3000
A118: If program funds are expended for professional development, justify such expenditures by demonstrating a relationship between the proposed expenditure for professional development and the program services and activities described in the application. Please indicate how these funds will support any services and activities that are described in this application.
A121: Item Description | J121: Funding Source | M121: Total Cost
K130: Total for Object Code: | M130: =SUM(M122:M129) -> 0
A133: DETAILED BUDGET DESCRIPTION OF OBJECT CODE 3000
A134: Provide a description of evaluation services or other expenses related to purchased or contracted services that are not related to the professional development detailed above.
A137: Item Description | J137: Funding Source | M137: Total Cost
K146: Total for Object Code: | M146: =SUM(M138:M145) -> 0
A148: Page 32
E149: School Division: | G149: ='Title I, Part C'!A17 -> ALBEMARLE COUNTY PUBLIC SCHOOLS | L149: Division Number: | N149: ='Title I, Part C'!$H$17 -> 2
A150: DETAILED BUDGET BREAKDOWN (CONTINUED)
A151: JUSTIFICATION FOR INTERNAL SERVICES - OBJECT CODE 4000
A152: If program funds are expended for internal services, describe these services below.
A155: Item Description | J155: Funding Source | M155: Total Cost
K162: Total for Object Code: | M162: =SUM(M156:M161) -> 0
A165: JUSTIFICATION FOR TRAVEL COSTS - OBJECT CODE 5000
A166: Travel must be justified by demonstrating a relationship between the proposed travel and the needs of the program. Please indicate the estimated cost.
A169: Item Description | J169: Funding Source | M169: Total Cost
K181: Total for Object Code: | M181: =SUM(M170:M180) -> 0
A183: Page 33
E184: School Division: | G184: ='Title I, Part C'!A17 -> ALBEMARLE COUNTY PUBLIC SCHOOLS | L184: Division Number: | N184: ='Title I, Part C'!$H$17 -> 2
A185: DETAILED BUDGET DESCRIPTION FOR OBJECT CODE 5000
A186: If applicable, indicate indirect costs charged to this program. Indirect costs cannot be claimed against capital outlay and equipment.
A189: Item Description | J189: Funding Source | M189: Total Cost
K198: Total for Object Code: | M198: =SUM(M190:M197) -> 0
A201: JUSTIFICATION FOR MATERIALS AND SUPPLIES - OBJECT CODE 6000
A202: Provide a description of materials, supplies, and all equipment less than $5,000 per unit. Indicate the equipment quantity.
A205: Item Description | H205: Funding Source | K205: Quantities | M205: Total Cost
I222: Total for Object Code: | K222: =SUM(K206:L221) -> 0 | M222: =SUM(M206:M221) -> 0
A224: Page 34
E225: School Division: | G225: ='Title I, Part C'!A17 -> ALBEMARLE COUNTY PUBLIC SCHOOLS | L225: Division Number: | N225: ='Title I, Part C'!$H$17 -> 2
A226: JUSTIFICATION FOR CAPITAL OUTLAY - OBJECT CODE 8000
A227: All capital outlay expenditures over $5,000 must be approved in advance by the Department of Education. If the local school division has established a threshold of a lesser amount, items equal to that amount or greater must also receive prior approval by the Department of Education. Equipment quantities must be specified.
A230: Item Description | H230: Funding Source | K230: Quantities | M230: Total Cost
I241: Total for Object Code: | K241: =SUM(K231:L240) -> 0 | M241: =SUM(M231:M240) -> 0
A244: DETAILED BUDGET DESCRIPTION FOR OBJECT CODE 8000
A245: Provide a description for expenses related to object code 8000 not included in the justification above.
A248: Item Description | H248: Funding Source | K248: Quantities | M248: Total Cost
I259: Total for Object Code: | K259: =SUM(K249:L258) -> 0 | M259: =SUM(M249:M258) -> 0
K261: Total Budget
A262: Page 35

Sheet GEPA
D1: School Division: | G1: ='Title I, Part C'!A17 -> ALBEMARLE COUNTY PUBLIC SCHOOLS | M1: Division Number: | P1: ='Title I, Part C'!H17 -> 2
A2: I. GENERAL EDUCATION PROVISIONS ACT (GEPA) SECTION 427
A4: Section 427 of the General Education Provisions Act (GEPA) requires applicants for federal funds to include in their applications a description of the steps the applicant will take to ensure equitable access to, and participation in, federally-assisted programs for students, teachers, and other program beneficiaries with special needs. The provision allows applicants discretion in developing the required description. The statute highlights six types of barriers that can impede equitable access or participation: gender, race, national origin, color, disability, or age. Based on local circumstances, the applicant should determine whether these or other barriers may prevent students, teachers, etc., from such access or participation in the federally-funded project or activity. The description in the application of steps to be taken to overcome these barriers need not be lengthy; the application may provide a clear and succinct description of how the applicant plans to address those barriers that are applicable to their circumstances.
A6: Describe the steps the division will take to ensure equitable access to, and participation in, grant-funded programs for students, teachers, and other program beneficiaries with special needs as required by the General Education Provisions Act (GEPA) 427, OMB Control No. 1894-00045, Section 427.
A7: Albemarle County is committed to providing equitable access for students, teachers and families in all grant-funded programs and opportunities as required by GEPA 427. 1. We ensure that all events are held in handicapped accessible facilities in geographically convenient locations. Events are held during the day, evening, and on weekends to accommodate family school/work schedules in order to maximize participation. 2. We provide materials that are accessible for literate and non-readers, as well as in electronic and paper copy formats to inform families who may not have access to social media and email. This includes translation of documents into languages other than English as needed. The ESOL Office annually vets, hires, and trains additional interpreters and translators to ensure optimal participation and inclusivity for all families. Simultaneous interpretation equipment is used in large-group settings, and phone interpretation systems are used when necessary.
A8: 3. ACPS conducts a variety of outreach programs to address gender and/or race inequalities. Some of these include: Teacher summer reading project, Girls in STEM initiatives, Summer Immersion Excursion, Camp Invention modules, CoderDojo, World Peace Game, and Saturday family engagement experiences to STEM fairs. 4. Efforts to involve diverse stakeholders in program planning and implementation are robust and include seventeen diverse teams. Advisory groups include Parent Council, Student Advisory, SPED, GTE, Title I, and Diversity and Equity. 5. The Title I, Title III, and Migrant and Homeless Coordinators meet monthly with the Director of Federal Programs to collaborate and ensure our students have equitable access to all division opportunities.
A9: Page 36

Sheet Consortium Incentive Grants
M1: Place an "X" by the applicable response.
C2: Virginia Department of Education | M2: X | N2: Original
C3: Office of ESEA Programs
C4: P. O. Box 2120 | N4: Revision:
C5: Richmond, Virginia 23218-2120 | N5: Revision #
N6: Date:
C7: A. COVER PAGE | N7: Explain
C8: Title I, Part C, Education of Migratory Children | N8: Amendment:
N9: Amendment #
C10: 2019-2020 Consortium Incentive Grant Application | N10: Date:
C11: Due by July 1, 2019 | N11: Explain
C12: Elementary and Secondary Education Act of 1965 (ESEA), as amended by
C13: the Every Student Succeeds Act of 2015 (ESSA), Public Law 114-95
A15: To be Completed by School Division
A16: Applicant (Legal Name of Agency): | H16: Division Number: | J16: Title I, Part C, Coordinator:
A17: ='Title I, Part C'!A17 -> ALBEMARLE COUNTY PUBLIC SCHOOLS | H17: ='Title I, Part C'!H17 -> 2 | J17: ='Title I, Part C'!J17:P17 -> Sharon Root
A20: LOCAL EDUCATIONAL AGENCY CERTIFICATION
A21: Use of Funds: The applicant designated above applies for an allocation of federal assistance as appropriated under ESEA. Funds are available to support local education reform efforts that are consistent with statewide education reform efforts to: 1) provide funding to implement promising education reform programs and school improvement programs based on evidence-based research; 2) provide a continuing source of innovative and educational improvement; 3) meet the educational needs of all students; and 4) develop and implement education programs to improve student achievement and teacher performance. Specific uses of funds for this application are found in the "Guidelines, Instructions, and Assurances" document.
A23: Assurances: The local educational agency assures that the Title I, Part C, program will be administered and implemented in compliance with all applicable statutes, regulations, policies, program plans, and applications. Additionally, the local educational agency agrees by signing below to implement the general and program specific assurances located in the “Application Guidelines, Instructions, and Assurances” document. The assurances and signed cover page are to be retained at the division level.
A25: Certification: We hereby certify that, to the best of our knowledge, the information contained in this application is correct. The agency named above has authorized us as its representatives to file this application.
A28: Superintendent/Agency Designee's Signature
A29: Dr. Matthew Haas
A30: Superintendent/Agency Designee's Name
A32: Date
A36: Page 37
E37: School Division: | G37: ='Title I, Part C'!A17 -> ALBEMARLE COUNTY PUBLIC SCHOOLS | M37: Division Number: | P37: ='Title I, Part C'!H17 -> 2
A38: APPLICATION INFORMATION
A40: PROGRAM | J40: 2019-2020 Allocation
A41: Title I, Part C, Education of Migratory Children, Consortium Incentive Grant | J41: =SUM(J42:L43) -> 0
A42: a. Division Allocation | H42: Subtotal
A43: b. Regional Program - Total of allocations for all divisions in the regional program | H43: Subtotal
A45: REVISIONS AND AMENDMENTS
A46: Place an "X" in the box indicating whether it is a revision or amendment. Enter the date of the revision or amendment. Indicate the tab(s) that have been changed. Provide a concise description of changes (for example, "Programmatic Changes--purchase of additional reading materials, object code 6000; Budget Changes--decreased travel budget in object code 5000 and increased materials to purchase additional reading materials in object code 6000"). When completing an amendment, changes to the program overview may be reflected as additions at the end of the narrative. NOTE: Any changes to the program budget should first be reflected in an amended application, followed by a budget transfer within 7 business days of approval of the amended application. Budget transfers will not be accepted without an approved amended application reflecting budget changes.
A47: 1. | B47: Revision | F47: Date:
B48: Amendment | F48: Date:
A50: 2. | B50: Revision | F50: Date:
B51: Amendment | F51: Date:
A53: 3. | B53: Revision | F53: Date:
B54: Amendment | F54: Date:
A56: 4. | B56: Revision | F56: Date:
B57: Amendment | F57: Date:
A59: 5. | B59: Revision | F59: Date:
B60: Amendment | F60: Date:
A62: 6. | B62: Revision | F62: Date:
B63: Amendment | F63: Date:
A65: 7. | B65: Revision | F65: Date:
B66: Amendment | F66: Date:
A68: Page 38
E69: School Division: | G69: ='Title I, Part C'!A17 -> ALBEMARLE COUNTY PUBLIC SCHOOLS | M69: Division Number: | P69: ='Title I, Part C'!H17 -> 2
A70: B. PROGRAM OVERVIEW
A71: In narrative format:
B72: Describe the instructional programs or program services to be developed with the requested federal funds based on the results of the division/regional comprehensive needs assessment. Include the targeted population(s). (Examples are: ESEA subgroups of students, homeless and migrant students, instructional and administrative staff, paraprofessionals, parents, etc.)
A79: Page 39
E80: School Division: | G80: ='Title I, Part C'!A17 -> ALBEMARLE COUNTY PUBLIC SCHOOLS | M80: Division Number: | P80: ='Title I, Part C'!H17 -> 2
A81: E. BUDGET SUMMARY
A83: OBJECT CODE | B83: EXPENDITURE | G83: AMOUNT BUDGETED | L83: Does the Budget Summary Match the Detailed Budget?
A84: 1000 - Personal Services | B84: Administration
B85: Teachers
B86: Paraprofessionals
B87: Private School Set-Aside
B88: Parent and Family Engagement
B89: Professional Development
B90: Other
B91: Total Personal Services | G91: =SUM(G84:K90) -> 0 | L91: =IF(SUM(G91)=SUM(N161),"Yes","No - please review your entries.") -> Yes
A92: 2000 - Employee Benefits | B92: Fixed Charges (Administrative and Instruction)
B93: Private School Set-Aside
B94: FIxed Charges (Parent and Family Engagement)
B95: FIxed Charges (Professional Development)
B96: Total Employee Benefits | G96: =SUM(G92:K95) -> 0 | L96: =IF(SUM(G96)=SUM(N176),"Yes","No - please review your entries.") -> Yes
A97: 3000 - Purchased/ Contracted Services | B97: Support Services (Med., Dental)
B98: Evaluation Services
B99: Parent and Family Engagement
B100: Private School Set-Aside
B101: Professional Development
B102: Teacher Quality (Assessments, Recruitment, etc.)
B103: Tutoring Services
B104: Other
B105: Total Purchased/Contracted Services | G105: =SUM(G97:K104) -> 0 | L105: =IF(SUM(G105)=SUM(N193,N208),"Yes","No - please review your entries.") -> Yes
A106: 4000 - Internal Services | B106: Public School Choice
B107: Pupil Transportation
B108: Food Services
B109: Private School Set-Aside
B110: Professional Development
B111: Parent and Family Engagement
B112: Other
B113: Total Internal Services | G113: =SUM(G106:K112) -> 0 | L113: =IF(SUM(G113)=SUM(N223),"Yes","No - please review your entries.") -> Yes
A114: 5000 - Other Charges | B114: Travel (Staff/Administrative)
B115: Maintenance/Operation of Plant
B116: Indirect Cost
B117: Private School Set-Aside
B118: Professional Development
B119: Parent and Family Engagement
B120: Other
B121: Total Other Charges | G121: =SUM(G114:K120) -> 0 | L121: =IF(SUM(G121)=SUM(N242,N259),"Yes","No - please review your entries.") -> Yes
A122: 6000 - Materials and Supplies | B122: Administrative
B123: Instructional
B124: Private School Set-Aside
B125: Professional Development
B126: Parent and Family Engagement
B127: Other
B128: Total Materials and Supplies | G128: =SUM(G122:K127) -> 0 | L128: =IF(SUM(G128)=SUM(N279),"Yes","No - please review your entries.") -> Yes
A129: 8000 - Capital Outlay | B129: Equipment for Instruction
B130: Buildings
B131: Remodeling
B132: Professional Development
B133: Parent and Family Engagement
B134: All Other Equipment
B135: Total Capital Outlay | G135: =SUM(G129:K134) -> 0 | L135: =IF(SUM(G135)=SUM(N295,N311),"Yes","No - please review your entries.") -> Yes
B136: TOTAL BUDGET | G136: =SUM(G135,G128,G121,G113,G105,G96,G91) -> 0
B137: Does the Total Budget Match the 2019-2020 Total Allocation? | G137: =IF(SUM(G136)=SUM(J41),"Yes","No - please review your entries.") -> Yes
A139: Note: | B139: Object codes 7000 and 9000 are not used in application budgets or in requests for reimbursements for this federal grant.
A140: Note: | B140: Expenses for parental involvement programs are to be incorporated into the appropriate object code(s) based on the category of the related charges.
A142: Page 41
E143: School Division: | G143: ='Title I, Part C'!A17 -> ALBEMARLE COUNTY PUBLIC SCHOOLS | M143: Division Number: | P143: ='Title I, Part C'!H17 -> 2
A144: DETAILED BUDGET BREAKDOWN
A145: Include a detailed breakdown of the budget categories for Object Codes 1000-6000 and 8000, as shown on pages 40-41.
A147: DETAILED BUDGET DESCRIPTION OF OBJECT CODE 1000
A148: If applicable, indicate the positions and FTEs supported with funds from this program.
A151: Item Description | L151: FTEs | N151: Total Cost
H161: Total for Object Code: | L161: =SUM(L152:M160) -> 0 | N161: =SUM(N152:P160) -> 0
A163: DETAILED BUDGET DESCRIPTION OF OBJECT CODE 2000
A164: Indicate the fixed charge categories (such as FICA, health insurance, etc.) and specify the amount of each.
A167: Item Description | N167: Total Cost
J176: Total for Object Code: | N176: =SUM(N168:P175) -> 0
A178: Page 42
E179: School Division: | G179: ='Title I, Part C'!A17 -> ALBEMARLE COUNTY PUBLIC SCHOOLS | M179: Division Number: | P179: ='Title I, Part C'!H17 -> 2
A180: JUSTIFICATION FOR PROFESSIONAL DEVELOPMENT - OBJECT CODE 3000
A181: If program funds are expended for professional development, justify such expenditures by demonstrating a relationship between the proposed expenditure for professional development and the program services and activities described in the application. Please indicate how these funds will support any services and activities that are described in this application.
A184: Item Description | N184: Total Cost
J193: Total for Object Code: | N193: =SUM(N185:P192) -> 0
A196: DETAILED BUDGET DESCRIPTION OF OBJECT CODE 3000
A197: Provide a description of evaluation services or other expenses related to purchased or contracted services that are not related to the professional development detailed above.
A200: Item Description | N200: Total Cost
J208: Total for Object Code: | N208: =SUM(N201:P207) -> 0
A210: Page 43
E211: School Division: | G211: ='Title I, Part C'!A17 -> ALBEMARLE COUNTY PUBLIC SCHOOLS | M211: Division Number: | P211: ='Title I, Part C'!H17 -> 2
A212: JUSTIFICATION FOR INTERNAL SERVICES - OBJECT CODE 4000
A213: If program funds are expended for internal services, describe these services below.
A216: Item Description | N216: Total Cost
J223: Total for Object Code: | N223: =SUM(N217:P222) -> 0
A226: JUSTIFICATION FOR TRAVEL COSTS - OBJECT CODE 5000
A227: Travel must be justified by demonstrating a relationship between the proposed travel and the needs of the program. Please indicate the estimated cost.
A230: Item Description | N230: Total Cost
J242: Total for Object Code: | N242: =SUM(N231:P241) -> 0
A244: Page 44
E245: School Division: | G245: ='Title I, Part C'!A17 -> ALBEMARLE COUNTY PUBLIC SCHOOLS | M245: Division Number: | P245: ='Title I, Part C'!H17 -> 2
A246: DETAILED BUDGET DESCRIPTION FOR OBJECT CODE 5000
A247: If applicable, indicate indirect costs charged to this program. Indirect costs cannot be claimed against capital outlay and equipment.
A250: Item Description | N250: Total Cost
J259: Total for Object Code: | N259: =SUM(N251:P258) -> 0
A261: JUSTIFICATION FOR MATERIALS AND SUPPLIES - OBJECT CODE 6000
A262: Provide a description of materials, supplies, and all equipment less than $5,000 per unit. Indicate the equipment quantity.
A265: Item Description | L265: Quantities | N265: Total Cost
J279: Total for Object Code: | N279: =SUM(N266:P278) -> 0
A280: Page 45
E281: School Division: | G281: ='Title I, Part C'!A17 -> ALBEMARLE COUNTY PUBLIC SCHOOLS | M281: Division Number: | P281: ='Title I, Part C'!H17 -> 2
A282: JUSTIFICATION FOR CAPITAL OUTLAY - OBJECT CODE 8000
A283: All capital outlay expenditures over $5,000 must be approved in advance by the Department of Education. If the local school division has established a threshold of a lesser amount, items equal to that amount or greater must also receive prior approval by the Department of Education. Equipment quantities must be specified.
A286: Item Description | L286: Quantities | N286: Total Cost
J295: Total for Object Code: | N295: =SUM(N287:P294) -> 0
A298: DETAILED BUDGET DESCRIPTION FOR OBJECT CODE 8000
A299: Provide a description for expenses related to object code 8000 not included in the justification above.
A302: Item Description | L302: Quantities | N302: Total Cost
J311: Total for Object Code: | N311: =SUM(N303:P310) -> 0
A313: Page 46
E314: School Division: | G314: ='Title I, Part C'!A17 -> ALBEMARLE COUNTY PUBLIC SCHOOLS | M314: Division Number: | P314: ='Title I, Part C'!H17 -> 2
A315: EXPENDITURE ACCOUNTS DESCRIPTIONS
A317: These accounts are for budgeting and recording expenditures of the educational agency for activities under its control. Below are definitions of the major expenditure categories. The descriptions provided are examples only. For further clarification on the proper expenditures of funds, contact your school division budget or finance office, the grant specialist in the Virginia Department of Education, or refer to the appropriate federal act.
A318: OBJECT CODE DEFINITIONS:
A319: (revised 5/16/17)
A321: 1000 | B321: PERSONAL SERVICES - Includes all compensation for the direct labor of persons in the employment of the local government. Salaries and wages paid to employees for full‐ and part‐time work, including overtime, shift differential, and similar compensation. Includes payments for time not worked, including sick leave, vacation, holidays, jury duty, military leave, and other paid absences that are earned during the reporting period. For the purposes of this report, the term “salaries” means all compensation including base wage. This also includes amounts paid through salary reduction plans, such as tax‐sheltered annuities and flexible benefit plans. Do not confuse this definition with the Virginia Retirement System (VRS) definition, which excludes supplements for retirement calculation purposes in some circumstances.
A323: 2000 | B323: EMPLOYEE BENEFITS - Job related benefits provided to employees as part of their total compensation. Fringe benefits include the employer’s portion of FICA, pensions, insurance (life, health, disability income, etc.) and employee allowances. NOTE: Fringe Benefits are a significant component of employee compensation and, like salaries and wages, are charged to the appropriate object of expenditure within each program. If possible, fringe benefit costs should be charged to the applicable educational program or activity on an ongoing basis. An alternative is to charge all fringe benefits to various benefit accounts. As part of the year‐end closing process, these accounts are closed, and all costs are allocated to the appropriate educational program or activity. The following methods are suggested for allocating such cost at year‐end. If these methods do not provide reasonable allocations based on circumstances within the school division, then the school division should use another reasonable allocation method. Consistency in application should be maintained at all times. • Allocation by percentage of payroll dollars • Allocation by Head Count • Direct to Program or Activity
A325: Page 47
A326: 3000 | B326: PURCHASED/CONTRACTUAL SERVICES - Services acquired from outside sources (i.e., private vendors, public authorities, or other governmental entities). Purchase of the service is on a fee basis or fixed time contract basis. Payments for rentals and utilities are not included in this account description. Allowable payments would be to individual or firms that are independent contractors and not employees of the grantee or sub‐grantee organization. The word honorarium is sometimes used to characterize such payments; the term “fee” is preferred. • Food Purchases – Prepared meals, working meals, and/or catered services purchased through a vendor are included in this object code. Reimbursement is capped at the per diem rate for the meal listed according to the state travel regulations. Examples for this object code include meals provided during day‐long professional development sessions, or meals provided to support attendance at family engagement activities. Food purchased from catering services and restaurants such as Pizza Hut, Panera Bread, and Subway is included in this object code. • Transportation Services Public Carriers – Payments to public carriers for transportation of pupils on vehicles that are used by the public. Include payments for pupils transported in intra‐city transit buses, taxicabs, airplanes, and intercity/interstate passenger buses. • Transportation Services Private Carriers – Payments (either cash or tokens) to parents for transportation of pupils in lieu of providing transportation on school buses. Include allowable payments to parents for pupils attending public, private, and non‐sectarian schools. Include costs associated with transporting special education students in school board‐owned vehicles to and from school.
B327: • Transportation Services by Contract – Payments to private owners of school buses who contract with the school board to transport pupils to and from public schools. Include payments to owners of private vehicles that contract with the school board to transport pupils to and from designated public and private schools. • Purchase of Service from Other Governmental Entities – Payments for services purchased from other governmental entities (i.e., other local governments, public authorities, state agencies, and other LEAs) on a contract/fee basis. Tuition payments to other local governments for a jointly operated center are not included here but are reported under “Payments to Joint Operations” (object code 7000). • Tuition Paid – Other Divisions In‐State, Tuition Paid – Other Divisions Out‐of‐State, and Tuition Paid – Private Schools are included in this object code.
A329: 4000 | B329: INTERNAL SERVICES - Charges from an Internal Service Fund to other functions/activities/elements of the local government for the use of intergovernmental services, such as data processing, automotive/motor pool, central purchasing/central stores, print shop, and risk management. These services are provided by internal services within the School District and possibly the county but not a vendor. • Food Purchases – Food purchased from the food services department of a school division or subgrantee equivalent to support professional development or family engagement events is included in this object code. For example, internal expenses for school cafeterias to provide meals to support attendance at family engagement activities are included in this object code.
A331: Page 48
A332: 5000 | B332: OTHER CHARGES - Include expenditures that support the use of programs. Includes expenditures that support the program, including utilities (maintenance and operation of plant), staff/administrative/consultant travel, office phone charges, training, leases/rental, indirect cost, and other. • Food Purchases – Food Purchases under this object code are restricted to food purchases related to travel reimbursement for meals only (see Travel below). If the sub‐recipient’s internal travel policies conform to state travel regulations, reimbursement is allowable at per diem meals rates according to state travel regulations. If the sub‐recipient’s internal travel policies require reimbursement for the cost of each meal, reimbursement is capped at the per diem rate for the meal listed according to the state travel regulations. Sub‐recipients must elect either meals per diem or per meals costs as their internal travel policy. • Telecommunications – Include expenditures for recurring telecommunications services for the use of on‐line computer technology (e.g., telephone/telecommunications line charges). Telephone charges for line service for Internet connectivity and the Electronic Classroom program. • Utilities – Payments for heat, electricity, water, and sewer services regardless of whether the service is provided by a private enterprise authority or an enterprise fund operated by a local government. • Communications – Payments for postal, messenger, and telecommunications services, typically office voice telephone charges. (Telecommunication costs directly related to technology uses should be coded under 6000.) In addition, office telephone charges would be coded under this code.
B333: • Insurance – Payments for insurance except those that relate to personal services (i.e., hospitalization, group life, worker’s compensation, unemployment) • Leases and Rentals – Includes payments for leases that are not capitalized and rental of land, structures, and equipment. Do not include payments made under a lease‐purchase agreement. • Travel – includes payments for travel reimbursement for staff/administrative/consultant travel. These are travel costs that are being reimbursed directly to travelers. These costs may include lodging, mileage, meals, and incidentals as allowable according to state travel regulations or documented subrecipient internal travel policies. If the sub‐recipient does not have documented internal travel policies, state travel regulations will prevail. • Contributions to Other Entities – Includes payments to other governmental entities or community organizations that are not related to the direct purchase of a service on a fee basis (which is reported under object code 3000) or payments to joint operations (which are reflected under object code 7000). • Public Assistance Payments – Payments to individuals for public assistance programs (general government use only). • Miscellaneous Other Charges – Includes expenditures that support the program, including indirect costs and other costs.
A335: Page 49
A336: 6000 | B336: MATERIALS AND SUPPLIES - Includes articles and commodities that are consumed or materially altered when used and minor equipment that is not capitalized. This includes any equipment purchased under $5,000, unless the LEA has set a lower capitalization threshold. Therefore, computer equipment under $5,000 would be reported in “materials and supplies.” • Food Purchases – Food items purchased from a grocery store or its equivalent for snacks or breaks is included in this object code. Examples include bottled water, granola bars, cookies, and fruit purchased from a store such as Wal‐Mart, Food Lion, Costco, etc. Prepared meals is not included in this object code; see object code 3000 for prepared/working/catered meals as purchased/contracted services. • Vehicle and Powered Equipment Fuels – Gasoline, lubricating oils, or such other fuel used in the operation of vehicles and powered equipment (e.g., lawnmowers) purchased from private sources or governmental agencies. • Vehicle and Powered Equipment Supplies – Tires, spark plugs, batteries, and chains used in the operation of vehicles and powered equipment purchased from private sources or governmental agencies. • Textbooks – All textbooks and workbooks purchased to be used in the classroom. • Instructional Materials – Books (not textbooks) and other materials.
B337: • Technology Software/On‐line Content – Include expenditures for videodiscs and computer programs used in the classroom for instructional purposes, operating system software (i.e., standalone software, not software that is pre‐installed and included in hardware costs), application software, and on‐line or downloadable software and content. Include expenditures for both additions and replacement. • Non‐Capitalized Technology Hardware – Include expenditures for hardware or classroom technology equipment that is not capitalized. • Non‐Capitalized Technology Infrastructure – Include expenditures for technology infrastructure that is not capitalized.
A339: Page 50
A340: 8000 | B340: CAPITAL OUTLAY - Note: Indirect cost cannot be claimed against capital outlay and equipment. Outlays that result in the acquisition of or additions to fixed assets. Capital Outlay includes the purchase of fixed assets both replacement and/or additional. Capital Outlay Replacement • Technology – Hardware Replacements – Include capital outlay for replacement of hardware or classroom technology equipment. (For further clarification on which expenditures should be included in this object code, see the “Special Note” below.) • Technology – Infrastructure Replacements – Include capital outlay for replacement of technology infrastructure. (For further clarification on which expenditures should be included in this object code, see the “Special Note” below.) • Capital Outlay Additions – Include machinery, equipment, furniture, fixtures, communications equipment, motor vehicles, etc. that are capitalized. • Technology – Hardware Additions – Include capital outlay for additional hardware or classroom technology equipment. (For further clarification on which expenditures should be included in this object code, see the “Special Note” below.) • Technology – Infrastructure Additions – Include capital outlay for additional technology infrastructure. (For further clarification on which expenditures should be included in this object code, see the “Special Note” below.)
B341: • Special Note ‐ Classification of Hardware and Infrastructure Expenditures: Report expenditures under technology “hardware” for computers, associated peripheral equipment, and other specialized technology equipment. Computers include desktop and laptop machines, handheld computers (i.e., Personal Digital Assistants or PDAs), and mainframe machines. Peripheral equipment includes devices attached to computers, such as monitors, keyboards, disk drives, modems, printers, scanners, cameras and speakers, etc. Report other specialized computer devices under technology “hardware” such as fax‐back and voicemail resources; videoconferencing and other distance education tools, including satellite transmitters and receivers; cable‐based receivers; and modem or codec‐based video equipment; projection devices, from transparent and opaque projectors to video monitors; and graphing calculators and other specialized computational aids. Report expenditures under technology “infrastructure” for equipment and devices that enable the linking of computers or video hardware to networks (such as routers, hubs, switches, access servers, modems, or codecs). Infrastructure also refers to cabling installations, whether wire, fiber optic, or coaxial, as well as electrical capacity expansion or HVAC upgrades to support networks. In wireless networking systems, include receivers and transmitters under infrastructure.
A343: Page 51
E344: School Division: | G344: ='Title I, Part C'!A17 -> ALBEMARLE COUNTY PUBLIC SCHOOLS | M344: Division Number: | P344: ='Title I, Part C'!H17 -> 2
A345: F. TITLE I, PART C, REGIONAL PROGRAM AGREEMENT 2019-2020
A347: The lead school division will be responsible for completing the application and serving as the fiscal agent. One (1) application should be submitted per regional program, and one (1) certification should be submitted by each participating school division to the lead school division.
A348: Lead Regional Program School Division
A349: Name of Lead: | L349: School Division Number: | N349: =P344 -> 2
A350: School Division: | C350: Albemarle County Public Schools
A351: Typed Name of Superintendent: | E351: Dr. Matthew Haas
A352: Signature of Superintendent: | M352: Date:
A354: Type name of contact for Title I, Part C, regional program if different than superintendent:
A355: Title I, Part C, Contact: | D355: Sharon Root
A357: Title: | C357: Title I, Part C Coordinator
A359: Mailing Address: | C359: 401 McIntire Road
A361: City, State, Zip: | C361: Charlottesville, VA 22902
A363: Telephone: | B363: 434-296-3872 | F363: E-mail: | G363: root@k12albemarle.org | M363: Fax: | N363: 434-972-4077
... 16 more rows

Sheet Prefills (hidden)
A1: Name | B1: Code | I1: INNOVATIVE ASSISTANCE PROGRAM AREAS | U1: Yes | W1: Yes | Z1: Title I A | AD1: Title I C | AH1: Title ID | AL1: Title IIA | AP1: Title IID | AT1: Title III | AX1: Title IV | BB1: Title V | BF1: Title VI
A2: ACCOMACK COUNTY PUBLIC SCHOOLS | B2: 1 | U2: No | W2: No | Z2: Payee | AA2: ProjectGroupID | AB2: CONoSOLIDATED_APP_FLAG | AC2: Allocation | AD2: Payee | AE2: ProjectGroupID | AF2: CONoSOLIDATED_APP_FLAG | AG2: Allocation | AH2: Payee | AI2: ProjectGroupID | AJ2: CONoSOLIDATED_APP_FLAG | AK2: Allocation | AL2: Payee | AM2: ProjectGroupID | AN2: CONoSOLIDATED_APP_FLAG | AO2: Allocation | AP2: Payee | AQ2: ProjectGroupID | AR2: CONoSOLIDATED_APP_FLAG | AS2: Allocation | AT2: Payee | AU2: ProjectGroupID | AV2: CONoSOLIDATED_APP_FLAG | AW2: Allocation | AX2: Payee | AY2: ProjectGroupID | AZ2: CONoSOLIDATED_APP_FLAG | BA2: Allocation | BB2: Payee | BC2: ProjectGroupID | BD2: CONoSOLIDATED_APP_FLAG | BE2: Allocation | BF2: Payee | BG2: ProjectGroupID | BH2: CONoSOLIDATED_APP_FLAG | BI2: Allocation
A3: ALBEMARLE COUNTY PUBLIC SCHOOLS | B3: 2 | W3: Shared Services Only | Z3: 1 | AA3: 1 | AB3: Yes | AD3: 1 | AE3: 2 | AF3: Yes | AG3: 192896.6 | AH3: 1 | AI3: 3 | AJ3: Yes | AL3: 1 | AM3: 4 | AN3: Yes | AT3: 1 | AU3: 6 | AV3: Yes | AX3: 1 | AY3: 97 | BF3: 1 | BG3: 9 | BH3: Yes
A4: ALEXANDRIA CITY PUBLIC SCHOOLS | B4: 101 | H4: 1. | I4: 1. Recruiting, training, and hiring highly qualified teachers to reduce class size | Z4: 2 | AA4: 1 | AB4: No | AD4: 2 | AE4: 2 | AF4: No | AG4: 124628.94 | AH4: 2 | AI4: 3 | AJ4: No | AL4: 2 | AM4: 4 | AN4: No | AT4: 2 | AU4: 6 | AV4: No | AX4: 2 | AY4: 97 | BF4: 2 | BG4: 9 | BH4: No
A5: ALLEGHANY COUNTY PUBLIC SCHOOLS | B5: 3 | H5: 2. | I5: 2. Technology activities, including professional development | Z5: 3 | AA5: 1 | AB5: Yes | AD5: 3 | AE5: 2 | AF5: Yes | AH5: 3 | AI5: 3 | AJ5: Yes | AL5: 3 | AM5: 4 | AN5: Yes | AT5: 3 | AU5: 6 | AV5: Yes | AX5: 3 | AY5: 97 | BF5: 3 | BG5: 9 | BH5: Yes
A6: AMELIA COUNTY PUBLIC SCHOOLS | B6: 4 | H6: 3a. | I6: 3a. Development or acquisition and use of: computer software and hardware | W6: Yes | Z6: 4 | AA6: 1 | AB6: Yes | AD6: 4 | AE6: 2 | AF6: Yes | AH6: 4 | AI6: 3 | AJ6: Yes | AL6: 4 | AM6: 4 | AN6: Yes | AT6: 4 | AU6: 6 | AV6: Yes | AX6: 4 | AY6: 97 | BF6: 4 | BG6: 9 | BH6: Yes
A7: AMHERST COUNTY PUBLIC SCHOOLS | B7: 5 | H7: 3b. | I7: 3b. Development or acquisition and use of: instructional/reference materials and academic assessments | W7: No | Z7: 5 | AA7: 1 | AB7: No | AD7: 5 | AE7: 2 | AF7: No | AH7: 5 | AI7: 3 | AJ7: No | AL7: 5 | AM7: 4 | AN7: No | AT7: 5 | AU7: 6 | AV7: No | AX7: 5 | AY7: 97 | BF7: 5 | BG7: 9 | BH7: No
A8: APPOMATTOX COUNTY PUBLIC SCHOOLS | B8: 6 | H8: 3c. | I8: 3c. Development or acquisition and use of: library/media services and materials | Z8: 6 | AA8: 1 | AB8: No | AD8: 6 | AE8: 2 | AF8: No | AH8: 6 | AI8: 3 | AJ8: No | AL8: 6 | AM8: 4 | AN8: No | AT8: 6 | AU8: 6 | AV8: No | AX8: 6 | AY8: 97 | BF8: 6 | BG8: 9 | BH8: No
A9: ARLINGTON COUNTY PUBLIC SCHOOLS | B9: 7 | H9: 4. | I9: 4. Educational reform projects, including magnet schools | Z9: 7 | AA9: 1 | AB9: Yes | AD9: 7 | AE9: 2 | AF9: Yes | AH9: 7 | AI9: 3 | AJ9: Yes | AL9: 7 | AM9: 4 | AN9: Yes | AT9: 7 | AU9: 6 | AV9: Yes | AX9: 7 | AY9: 97 | BF9: 7 | BG9: 9 | BH9: Yes
A10: AUGUSTA COUNTY PUBLIC SCHOOLS | B10: 8 | H10: 5. | I10: 5. Programs to improve the academic achievement of educationally disadvantaged elementary and secondary students, including dropout prevention | Z10: 8 | AA10: 1 | AB10: No | AD10: 8 | AE10: 2 | AF10: No | AH10: 8 | AI10: 3 | AJ10: No | AL10: 8 | AM10: 4 | AN10: No | AT10: 8 | AU10: 6 | AV10: No | AX10: 8 | AY10: 97 | BF10: 8 | BG10: 9 | BH10: No
A11: BATH COUNTY PUBLIC SCHOOLS | B11: 9 | H11: 6. | I11: 6. Programs to improve the literacy skills of adults, including adult education and family literacy programs | Z11: 9 | AA11: 1 | AB11: No | AD11: 9 | AE11: 2 | AF11: No | AH11: 9 | AI11: 3 | AJ11: No | AL11: 9 | AM11: 4 | AN11: No | AT11: 9 | AU11: 6 | AV11: No | AX11: 9 | AY11: 97 | BF11: 9 | BG11: 9 | BH11: No
A12: BEDFORD CITY PUBLIC SCHOOLS | B12: 140 | H12: 7. | I12: 7. Programs for gifted and talented children | Z12: 10 | AA12: 1 | AB12: No | AD12: 10 | AE12: 2 | AF12: No | AH12: 10 | AI12: 3 | AJ12: No | AL12: 10 | AM12: 4 | AN12: No | AT12: 10 | AU12: 6 | AV12: No | AX12: 10 | AY12: 97 | BF12: 10 | BG12: 9 | BH12: No
A13: BEDFORD COUNTY PUBLIC SCHOOLS | B13: 10 | H13: 8. | I13: 8. Planning, design, and initial implementation of charter schools under Title V, Part B | Z13: 11 | AA13: 1 | AB13: Yes | AD13: 11 | AE13: 2 | AF13: Yes | AH13: 11 | AI13: 3 | AJ13: Yes | AL13: 11 | AM13: 4 | AN13: Yes | AT13: 11 | AU13: 6 | AV13: Yes | AX13: 11 | AY13: 97 | BF13: 11 | BG13: 9 | BH13: Yes
A14: BLAND COUNTY PUBLIC SCHOOLS | B14: 11 | H14: 9. | I14: 9. School improvement programs or activities under Sections 1116 and 1117 of Title I, Part A | Z14: 12 | AA14: 1 | AB14: No | AD14: 12 | AE14: 2 | AF14: No | AH14: 12 | AI14: 3 | AJ14: No | AL14: 12 | AM14: 4 | AN14: No | AT14: 12 | AU14: 6 | AV14: No | AX14: 12 | AY14: 97 | BF14: 12 | BG14: 9 | BH14: No
A15: BOTETOURT COUNTY PUBLIC SCHOOLS | B15: 12 | H15: 10. | I15: 10. Community service programs | Z15: 13 | AA15: 1 | AB15: Yes | AD15: 13 | AE15: 2 | AF15: Yes | AH15: 13 | AI15: 3 | AJ15: Yes | AL15: 13 | AM15: 4 | AN15: Yes | AT15: 13 | AU15: 6 | AV15: Yes | AX15: 13 | AY15: 97 | BF15: 13 | BG15: 9 | BH15: Yes
A16: BRISTOL CITY PUBLIC SCHOOLS | B16: 102 | H16: 11. | I16: 11. Consumer, economic, and personal finance education | Z16: 14 | AA16: 1 | AB16: Yes | AD16: 14 | AE16: 2 | AF16: Yes | AH16: 14 | AI16: 3 | AJ16: Yes | AL16: 14 | AM16: 4 | AN16: Yes | AT16: 14 | AU16: 6 | AV16: Yes | AX16: 14 | AY16: 97 | BF16: 14 | BG16: 9 | BH16: Yes
A17: BRUNSWICK COUNTY PUBLIC SCHOOLS | B17: 13 | H17: 12. | I17: 12. Public school choice | W17: 1000 | Z17: 15 | AA17: 1 | AB17: Yes | AD17: 15 | AE17: 2 | AF17: Yes | AH17: 15 | AI17: 3 | AJ17: Yes | AL17: 15 | AM17: 4 | AN17: Yes | AT17: 15 | AU17: 6 | AV17: Yes | AX17: 15 | AY17: 97 | BF17: 15 | BG17: 9 | BH17: Yes
A18: BUCHANAN COUNTY PUBLIC SCHOOLS | B18: 14 | H18: 13. | I18: 13. Programs to hire and support school nurses | W18: 2000 | Z18: 16 | AA18: 1 | AB18: No | AD18: 16 | AE18: 2 | AF18: No | AH18: 16 | AI18: 3 | AJ18: No | AL18: 16 | AM18: 4 | AN18: No | AT18: 16 | AU18: 6 | AV18: No | AX18: 16 | AY18: 97 | BF18: 16 | BG18: 9 | BH18: No
A19: BUCKINGHAM COUNTY PUBLIC SCHOOLS | B19: 15 | H19: 14. | I19: 14. School-based mental health services | W19: 3000 | Z19: 17 | AA19: 1 | AB19: Yes | AD19: 17 | AE19: 2 | AF19: Yes | AH19: 17 | AI19: 3 | AJ19: Yes | AL19: 17 | AM19: 4 | AN19: Yes | AT19: 17 | AU19: 6 | AV19: Yes | AX19: 17 | AY19: 97 | BF19: 17 | BG19: 9 | BH19: Yes
A20: BUENA VISTA CITY PUBLIC SCHOOLS | B20: 103 | H20: 15. | I20: 15. Alternative educational programs | W20: 4000 | Z20: 18 | AA20: 1 | AB20: No | AD20: 18 | AE20: 2 | AF20: No | AG20: 59173.66 | AH20: 18 | AI20: 3 | AJ20: No | AL20: 18 | AM20: 4 | AN20: No | AT20: 18 | AU20: 6 | AV20: No | AX20: 18 | AY20: 97 | BF20: 18 | BG20: 9 | BH20: No
A21: CAMPBELL COUNTY PUBLIC SCHOOLS | B21: 16 | H21: 16. | I21: 16. Prekindergarten programs | W21: 5000 | Z21: 19 | AA21: 1 | AB21: Yes | AD21: 19 | AE21: 2 | AF21: Yes | AH21: 19 | AI21: 3 | AJ21: Yes | AL21: 19 | AM21: 4 | AN21: Yes | AT21: 19 | AU21: 6 | AV21: Yes | AX21: 19 | AY21: 97 | BF21: 19 | BG21: 9 | BH21: Yes
A22: CAROLINE COUNTY PUBLIC SCHOOLS | B22: 17 | H22: 17. | I22: 17. Academic intervention programs jointly operated with community-based organizations | W22: 6000 | Z22: 20 | AA22: 1 | AB22: Yes | AD22: 20 | AE22: 2 | AF22: Yes | AH22: 20 | AI22: 3 | AJ22: Yes | AL22: 20 | AM22: 4 | AN22: Yes | AT22: 20 | AU22: 6 | AV22: Yes | AX22: 20 | AY22: 97 | BF22: 20 | BG22: 9 | BH22: Yes
A23: CARROLL COUNTY PUBLIC SCHOOLS | B23: 18 | H23: 18. | I23: 18. CPR training | W23: 8000 | Z23: 21 | AA23: 1 | AB23: No | AD23: 21 | AE23: 2 | AF23: No | AH23: 21 | AI23: 3 | AJ23: No | AL23: 21 | AM23: 4 | AN23: No | AT23: 21 | AU23: 6 | AV23: No | AX23: 21 | AY23: 97 | BF23: 21 | BG23: 9 | BH23: No
A24: CHARLES CITY COUNTY PUBLIC SCHOOLS | B24: 19 | H24: 19. | I24: 19. Smaller learning communities | Z24: 22 | AA24: 1 | AB24: No | AD24: 22 | AE24: 2 | AF24: No | AH24: 22 | AI24: 3 | AJ24: No | AL24: 22 | AM24: 4 | AN24: No | AT24: 22 | AU24: 6 | AV24: No | AX24: 22 | AY24: 97 | BF24: 22 | BG24: 9 | BH24: No
A25: CHARLOTTE COUNTY PUBLIC SCHOOLS | B25: 20 | H25: 20. | I25: 20. Activities that encourage and expand improvements throughout the LEA area that are designed to advance student academic achievement | Z25: 23 | AA25: 1 | AB25: Yes | AD25: 23 | AE25: 2 | AF25: Yes | AH25: 23 | AI25: 3 | AJ25: Yes | AL25: 23 | AM25: 4 | AN25: Yes | AT25: 23 | AU25: 6 | AV25: Yes | AX25: 23 | AY25: 97 | BF25: 23 | BG25: 9 | BH25: Yes
A26: CHARLOTTESVILLE CITY PUBLIC SCHOOLS | B26: 104 | H26: 21. | I26: 21. Parental and community involvement | Z26: 24 | AA26: 1 | AB26: No | AD26: 24 | AE26: 2 | AF26: No | AH26: 24 | AI26: 3 | AJ26: No | AL26: 24 | AM26: 4 | AN26: No | AT26: 24 | AU26: 6 | AV26: No | AX26: 24 | AY26: 97 | BF26: 24 | BG26: 9 | BH26: No
A27: CHESAPEAKE CITY PUBLIC SCHOOLS | B27: 136 | H27: 22. | I27: 22. Activities that expand learning through best-practice models | Z27: 25 | AA27: 1 | AB27: Yes | AD27: 25 | AE27: 2 | AF27: Yes | AH27: 25 | AI27: 3 | AJ27: Yes | AL27: 25 | AM27: 4 | AN27: Yes | AT27: 25 | AU27: 6 | AV27: Yes | AX27: 25 | AY27: 97 | BF27: 25 | BG27: 9 | BH27: Yes
A28: CHESTERFIELD COUNTY PUBLIC SCHOOLS | B28: 21 | H28: 23. | I28: 23. Same-gender schools and classrooms (consistent with applicable law)** | Z28: 26 | AA28: 1 | AB28: No | AD28: 26 | AE28: 2 | AF28: No | AH28: 26 | AI28: 3 | AJ28: No | AL28: 26 | AM28: 4 | AN28: No | AT28: 26 | AU28: 6 | AV28: No | AX28: 26 | AY28: 97 | BF28: 26 | BG28: 9 | BH28: No
A29: CLARKE COUNTY PUBLIC SCHOOLS | B29: 22 | H29: 24. | I29: 24. Service learning activities | Z29: 27 | AA29: 1 | AB29: Yes | AD29: 27 | AE29: 2 | AF29: Yes | AH29: 27 | AI29: 3 | AJ29: Yes | AL29: 27 | AM29: 4 | AN29: Yes | AT29: 27 | AU29: 6 | AV29: Yes | AX29: 27 | AY29: 97 | BF29: 27 | BG29: 9 | BH29: Yes
A30: CLIFTON FORGE CITY | B30: 105 | H30: 25. | I30: 25. School safety programs | Z30: 28 | AA30: 1 | AB30: No | AD30: 28 | AE30: 2 | AF30: No | AH30: 28 | AI30: 3 | AJ30: No | AL30: 28 | AM30: 4 | AN30: No | AT30: 28 | AU30: 6 | AV30: No | AX30: 28 | AY30: 97 | BF30: 28 | BG30: 9 | BH30: No
A31: COLONIAL BEACH TOWN PUBLIC SCHOOLS | B31: 202 | H31: 26. | I31: 26. Programs that use research-based cognitive and perceptual development approaches | Z31: 29 | AA31: 1 | AB31: No | AD31: 29 | AE31: 2 | AF31: No | AH31: 29 | AI31: 3 | AJ31: No | AL31: 29 | AM31: 4 | AN31: No | AT31: 29 | AU31: 6 | AV31: No | AX31: 29 | AY31: 97 | BF31: 29 | BG31: 9 | BH31: No
A32: COLONIAL HEIGHTS CITY PUBLIC SCHOOLS | B32: 106 | H32: 27. | I32: 27. Supplemental educational services as defined in Section 1116(e) of Title I, Part A | Z32: 30 | AA32: 1 | AB32: Yes | AD32: 30 | AE32: 2 | AF32: Yes | AH32: 30 | AI32: 3 | AJ32: Yes | AL32: 30 | AM32: 4 | AN32: Yes | AT32: 30 | AU32: 6 | AV32: Yes | AX32: 30 | AY32: 97 | BF32: 30 | BG32: 9 | BH32: Yes
A33: COVINGTON CITY PUBLIC SCHOOLS | B33: 107 | I33: Program Administration | Z33: 31 | AA33: 1 | AB33: Yes | AD33: 31 | AE33: 2 | AF33: Yes | AH33: 31 | AI33: 3 | AJ33: Yes | AL33: 31 | AM33: 4 | AN33: Yes | AT33: 31 | AU33: 6 | AV33: Yes | AX33: 31 | AY33: 97 | BF33: 31 | BG33: 9 | BH33: Yes
A34: CRAIG COUNTY PUBLIC SCHOOLS | B34: 23 | I34: Indirect Costs (not to exceed approved rate) | Z34: 32 | AA34: 1 | AB34: Yes | AD34: 32 | AE34: 2 | AF34: Yes | AH34: 32 | AI34: 3 | AJ34: Yes | AL34: 32 | AM34: 4 | AN34: Yes | AT34: 32 | AU34: 6 | AV34: Yes | AX34: 32 | AY34: 97 | BF34: 32 | BG34: 9 | BH34: Yes
A35: CULPEPER COUNTY PUBLIC SCHOOLS | B35: 24 | Z35: 33 | AA35: 1 | AB35: Yes | AD35: 33 | AE35: 2 | AF35: Yes | AH35: 33 | AI35: 3 | AJ35: Yes | AL35: 33 | AM35: 4 | AN35: Yes | AT35: 33 | AU35: 6 | AV35: Yes | AX35: 33 | AY35: 97 | BF35: 33 | BG35: 9 | BH35: Yes
A36: CUMBERLAND COUNTY PUBLIC SCHOOLS | B36: 25 | Z36: 34 | AA36: 1 | AB36: No | AD36: 34 | AE36: 2 | AF36: No | AH36: 34 | AI36: 3 | AJ36: No | AL36: 34 | AM36: 4 | AN36: No | AT36: 34 | AU36: 6 | AV36: No | AX36: 34 | AY36: 97 | BF36: 34 | BG36: 9 | BH36: No
A37: DANVILLE CITY PUBLIC SCHOOLS | B37: 108 | Z37: 35 | AA37: 1 | AB37: No | AD37: 35 | AE37: 2 | AF37: No | AH37: 35 | AI37: 3 | AJ37: No | AL37: 35 | AM37: 4 | AN37: No | AT37: 35 | AU37: 6 | AV37: No | AX37: 35 | AY37: 97 | BF37: 35 | BG37: 9 | BH37: No
A38: DICKENSON COUNTY PUBLIC SCHOOLS | B38: 26 | Z38: 36 | AA38: 1 | AB38: Yes | AD38: 36 | AE38: 2 | AF38: Yes | AH38: 36 | AI38: 3 | AJ38: Yes | AL38: 36 | AM38: 4 | AN38: Yes | AT38: 36 | AU38: 6 | AV38: Yes | AX38: 36 | AY38: 97 | BF38: 36 | BG38: 9 | BH38: Yes
A39: DINWIDDIE COUNTY PUBLIC SCHOOLS | B39: 27 | Z39: 37 | AA39: 1 | AB39: No | AD39: 37 | AE39: 2 | AF39: No | AH39: 37 | AI39: 3 | AJ39: No | AL39: 37 | AM39: 4 | AN39: No | AT39: 37 | AU39: 6 | AV39: No | AX39: 37 | AY39: 97 | BF39: 37 | BG39: 9 | BH39: No
A40: EMPORIA CITY PUBLIC SCHOOLS | B40: 138 | Z40: 38 | AA40: 1 | AB40: No | AD40: 38 | AE40: 2 | AF40: No | AH40: 38 | AI40: 3 | AJ40: No | AL40: 38 | AM40: 4 | AN40: No | AT40: 38 | AU40: 6 | AV40: No | AX40: 38 | AY40: 97 | BF40: 38 | BG40: 9 | BH40: No
A41: ESSEX COUNTY PUBLIC SCHOOLS | B41: 28 | Z41: 39 | AA41: 1 | AB41: Yes | AD41: 39 | AE41: 2 | AF41: Yes | AH41: 39 | AI41: 3 | AJ41: Yes | AL41: 39 | AM41: 4 | AN41: Yes | AT41: 39 | AU41: 6 | AV41: Yes | AX41: 39 | AY41: 97 | BF41: 39 | BG41: 9 | BH41: Yes
A42: FAIRFAX CITY PUBLIC SCHOOLS | B42: 134 | Z42: 40 | AA42: 1 | AB42: Yes | AD42: 40 | AE42: 2 | AF42: Yes | AH42: 40 | AI42: 3 | AJ42: Yes | AL42: 40 | AM42: 4 | AN42: Yes | AT42: 40 | AU42: 6 | AV42: Yes | AX42: 40 | AY42: 97 | BF42: 40 | BG42: 9 | BH42: Yes
A43: FAIRFAX COUNTY PUBLIC SCHOOLS | B43: 29 | Z43: 41 | AA43: 1 | AB43: Yes | AD43: 41 | AE43: 2 | AF43: Yes | AH43: 41 | AI43: 3 | AJ43: Yes | AL43: 41 | AM43: 4 | AN43: Yes | AT43: 41 | AU43: 6 | AV43: Yes | AX43: 41 | AY43: 97 | BF43: 41 | BG43: 9 | BH43: Yes
A44: FALLS CHURCH CITY PUBLIC SCHOOLS | B44: 109 | Z44: 42 | AA44: 1 | AB44: No | AD44: 42 | AE44: 2 | AF44: No | AH44: 42 | AI44: 3 | AJ44: No | AL44: 42 | AM44: 4 | AN44: No | AT44: 42 | AU44: 6 | AV44: No | AX44: 42 | AY44: 97 | BF44: 42 | BG44: 9 | BH44: No
A45: FAUQUIER COUNTY PUBLIC SCHOOLS | B45: 30 | Z45: 43 | AA45: 1 | AB45: No | AD45: 43 | AE45: 2 | AF45: No | AH45: 43 | AI45: 3 | AJ45: No | AL45: 43 | AM45: 4 | AN45: No | AT45: 43 | AU45: 6 | AV45: No | AX45: 43 | AY45: 97 | BF45: 43 | BG45: 9 | BH45: No
A46: FLOYD COUNTY PUBLIC SCHOOLS | B46: 31 | Z46: 44 | AA46: 1 | AB46: No | AD46: 44 | AE46: 2 | AF46: No | AH46: 44 | AI46: 3 | AJ46: No | AL46: 44 | AM46: 4 | AN46: No | AT46: 44 | AU46: 6 | AV46: No | AX46: 44 | AY46: 97 | BF46: 44 | BG46: 9 | BH46: No
A47: FLUVANNA COUNTY PUBLIC SCHOOLS | B47: 32 | Z47: 45 | AA47: 1 | AB47: No | AD47: 45 | AE47: 2 | AF47: No | AH47: 45 | AI47: 3 | AJ47: No | AL47: 45 | AM47: 4 | AN47: No | AT47: 45 | AU47: 6 | AV47: No | AX47: 45 | AY47: 97 | BF47: 45 | BG47: 9 | BH47: No
A48: FRANKLIN CITY PUBLIC SCHOOLS | B48: 135 | Z48: 46 | AA48: 1 | AB48: No | AD48: 46 | AE48: 2 | AF48: No | AH48: 46 | AI48: 3 | AJ48: No | AL48: 46 | AM48: 4 | AN48: No | AT48: 46 | AU48: 6 | AV48: No | AX48: 46 | AY48: 97 | BF48: 46 | BG48: 9 | BH48: No
A49: FRANKLIN COUNTY PUBLIC SCHOOLS | B49: 33 | Z49: 47 | AA49: 1 | AD49: 47 | AE49: 2 | AH49: 47 | AI49: 3 | AL49: 47 | AM49: 4 | AT49: 47 | AU49: 6 | AX49: 47 | AY49: 97 | BF49: 47 | BG49: 9
A50: FREDERICK COUNTY PUBLIC SCHOOLS | B50: 34 | Z50: 48 | AA50: 1 | AB50: No | AD50: 48 | AE50: 2 | AF50: No | AH50: 48 | AI50: 3 | AJ50: No | AL50: 48 | AM50: 4 | AN50: No | AT50: 48 | AU50: 6 | AV50: No | AX50: 48 | AY50: 97 | BF50: 48 | BG50: 9 | BH50: No
A51: FREDERICKSBURG CITY PUBLIC SCHOOLS | B51: 110 | Z51: 49 | AA51: 1 | AB51: Yes | AD51: 49 | AE51: 2 | AF51: Yes | AH51: 49 | AI51: 3 | AJ51: Yes | AL51: 49 | AM51: 4 | AN51: Yes | AT51: 49 | AU51: 6 | AV51: Yes | AX51: 49 | AY51: 97 | BF51: 49 | BG51: 9 | BH51: Yes
A52: GALAX CITY PUBLIC SCHOOLS | B52: 111 | Z52: 50 | AA52: 1 | AB52: Yes | AD52: 50 | AE52: 2 | AF52: Yes | AH52: 50 | AI52: 3 | AJ52: Yes | AL52: 50 | AM52: 4 | AN52: Yes | AT52: 50 | AU52: 6 | AV52: Yes | AX52: 50 | AY52: 97 | BF52: 50 | BG52: 9 | BH52: Yes
A53: GILES COUNTY PUBLIC SCHOOLS | B53: 35 | Z53: 51 | AA53: 1 | AB53: Yes | AD53: 51 | AE53: 2 | AF53: Yes | AH53: 51 | AI53: 3 | AJ53: Yes | AL53: 51 | AM53: 4 | AN53: Yes | AT53: 51 | AU53: 6 | AV53: Yes | AX53: 51 | AY53: 97 | BF53: 51 | BG53: 9 | BH53: Yes
A54: GLOUCESTER COUNTY PUBLIC SCHOOLS | B54: 36 | Z54: 52 | AA54: 1 | AB54: Yes | AD54: 52 | AE54: 2 | AF54: Yes | AH54: 52 | AI54: 3 | AJ54: Yes | AL54: 52 | AM54: 4 | AN54: Yes | AT54: 52 | AU54: 6 | AV54: Yes | AX54: 52 | AY54: 97 | BF54: 52 | BG54: 9 | BH54: Yes
A55: GOOCHLAND COUNTY PUBLIC SCHOOLS | B55: 37 | Z55: 53 | AA55: 1 | AB55: Yes | AD55: 53 | AE55: 2 | AF55: Yes | AH55: 53 | AI55: 3 | AJ55: Yes | AL55: 53 | AM55: 4 | AN55: Yes | AT55: 53 | AU55: 6 | AV55: Yes | AX55: 53 | AY55: 97 | BF55: 53 | BG55: 9 | BH55: Yes
A56: GRAYSON COUNTY PUBLIC SCHOOLS | B56: 38 | Z56: 54 | AA56: 1 | AB56: No | AD56: 54 | AE56: 2 | AF56: No | AH56: 54 | AI56: 3 | AJ56: No | AL56: 54 | AM56: 4 | AN56: No | AT56: 54 | AU56: 6 | AV56: No | AX56: 54 | AY56: 97 | BF56: 54 | BG56: 9 | BH56: No
A57: GREENE COUNTY PUBLIC SCHOOLS | B57: 39 | Z57: 55 | AA57: 1 | AB57: Yes | AD57: 55 | AE57: 2 | AF57: Yes | AH57: 55 | AI57: 3 | AJ57: Yes | AL57: 55 | AM57: 4 | AN57: Yes | AT57: 55 | AU57: 6 | AV57: Yes | AX57: 55 | AY57: 97 | BF57: 55 | BG57: 9 | BH57: Yes
A58: GREENSVILLE COUNTY PUBLIC SCHOOLS | B58: 40 | Z58: 56 | AA58: 1 | AB58: No | AD58: 56 | AE58: 2 | AF58: No | AH58: 56 | AI58: 3 | AJ58: No | AL58: 56 | AM58: 4 | AN58: No | AT58: 56 | AU58: 6 | AV58: No | AX58: 56 | AY58: 97 | BF58: 56 | BG58: 9 | BH58: No
A59: HALIFAX COUNTY PUBLIC SCHOOLS | B59: 41 | Z59: 57 | AA59: 1 | AB59: Yes | AD59: 57 | AE59: 2 | AF59: Yes | AH59: 57 | AI59: 3 | AJ59: Yes | AL59: 57 | AM59: 4 | AN59: Yes | AT59: 57 | AU59: 6 | AV59: Yes | AX59: 57 | AY59: 97 | BF59: 57 | BG59: 9 | BH59: Yes
A60: HAMPTON CITY PUBLIC SCHOOLS | B60: 112 | Z60: 58 | AA60: 1 | AB60: Yes | AD60: 58 | AE60: 2 | AF60: Yes | AH60: 58 | AI60: 3 | AJ60: Yes | AL60: 58 | AM60: 4 | AN60: Yes | AT60: 58 | AU60: 6 | AV60: Yes | AX60: 58 | AY60: 97 | BF60: 58 | BG60: 9 | BH60: Yes
A61: HANOVER COUNTY PUBLIC SCHOOLS | B61: 42 | Z61: 59 | AA61: 1 | AB61: Yes | AD61: 59 | AE61: 2 | AF61: Yes | AH61: 59 | AI61: 3 | AJ61: Yes | AL61: 59 | AM61: 4 | AN61: Yes | AT61: 59 | AU61: 6 | AV61: Yes | AX61: 59 | AY61: 97 | BF61: 59 | BG61: 9 | BH61: Yes
A62: HARRISONBURG CITY PUBLIC SCHOOLS | B62: 113 | Z62: 60 | AA62: 1 | AB62: No | AD62: 60 | AE62: 2 | AF62: No | AH62: 60 | AI62: 3 | AJ62: No | AL62: 60 | AM62: 4 | AN62: No | AT62: 60 | AU62: 6 | AV62: No | AX62: 60 | AY62: 97 | BF62: 60 | BG62: 9 | BH62: No
A63: HENRICO COUNTY PUBLIC SCHOOLS | B63: 43 | Z63: 62 | AA63: 1 | AB63: No | AD63: 62 | AE63: 2 | AF63: No | AH63: 62 | AI63: 3 | AJ63: No | AL63: 62 | AM63: 4 | AN63: No | AT63: 62 | AU63: 6 | AV63: No | AX63: 62 | AY63: 97 | BF63: 62 | BG63: 9 | BH63: No
A64: HENRY COUNTY PUBLIC SCHOOLS | B64: 44 | Z64: 63 | AA64: 1 | AB64: Yes | AD64: 63 | AE64: 2 | AF64: Yes | AH64: 63 | AI64: 3 | AJ64: Yes | AL64: 63 | AM64: 4 | AN64: Yes | AT64: 63 | AU64: 6 | AV64: Yes | AX64: 63 | AY64: 97 | BF64: 63 | BG64: 9 | BH64: Yes
A65: HIGHLAND COUNTY PUBLIC SCHOOLS | B65: 45 | Z65: 65 | AA65: 1 | AB65: Yes | AD65: 65 | AE65: 2 | AF65: Yes | AG65: 174298.34 | AH65: 65 | AI65: 3 | AJ65: Yes | AL65: 65 | AM65: 4 | AN65: Yes | AT65: 65 | AU65: 6 | AV65: Yes | AX65: 65 | AY65: 97 | BF65: 65 | BG65: 9 | BH65: Yes
A66: HOPEWELL CITY PUBLIC SCHOOLS | B66: 114 | Z66: 66 | AA66: 1 | AB66: Yes | AD66: 66 | AE66: 2 | AF66: Yes | AH66: 66 | AI66: 3 | AJ66: Yes | AL66: 66 | AM66: 4 | AN66: Yes | AT66: 66 | AU66: 6 | AV66: Yes | AX66: 66 | AY66: 97 | BF66: 66 | BG66: 9 | BH66: Yes
A67: ISLE OF WIGHT COUNTY PUBLIC SCHOOLS | B67: 46 | Z67: 67 | AA67: 1 | AB67: Yes | AD67: 67 | AE67: 2 | AF67: Yes | AH67: 67 | AI67: 3 | AJ67: Yes | AL67: 67 | AM67: 4 | AN67: Yes | AT67: 67 | AU67: 6 | AV67: Yes | AX67: 67 | AY67: 97 | BF67: 67 | BG67: 9 | BH67: Yes
A68: JAMES CITY COUNTY PUBLIC SCHOOLS | B68: 47 | Z68: 68 | AA68: 1 | AB68: Yes | AD68: 68 | AE68: 2 | AF68: Yes | AH68: 68 | AI68: 3 | AJ68: Yes | AL68: 68 | AM68: 4 | AN68: Yes | AT68: 68 | AU68: 6 | AV68: Yes | AX68: 68 | AY68: 97 | BF68: 68 | BG68: 9 | BH68: Yes
A69: JAMES MADISON UNIVERSITY | B69: 871 | Z69: 69 | AA69: 1 | AB69: Yes | AD69: 69 | AE69: 2 | AF69: Yes | AH69: 69 | AI69: 3 | AJ69: Yes | AL69: 69 | AM69: 4 | AN69: Yes | AT69: 69 | AU69: 6 | AV69: Yes | AX69: 69 | AY69: 97 | BF69: 69 | BG69: 9 | BH69: Yes
A70: KING AND QUEEN COUNTY PUBLIC SCHOOLS | B70: 49 | Z70: 70 | AA70: 1 | AB70: No | AD70: 70 | AE70: 2 | AF70: No | AH70: 70 | AI70: 3 | AJ70: No | AL70: 70 | AM70: 4 | AN70: No | AT70: 70 | AU70: 6 | AV70: No | AX70: 70 | AY70: 97 | BF70: 70 | BG70: 9 | BH70: No
A71: KING GEORGE COUNTY PUBLIC SCHOOLS | B71: 48 | Z71: 71 | AA71: 1 | AB71: No | AD71: 71 | AE71: 2 | AF71: No | AH71: 71 | AI71: 3 | AJ71: No | AL71: 71 | AM71: 4 | AN71: No | AT71: 71 | AU71: 6 | AV71: No | AX71: 71 | AY71: 97 | BF71: 71 | BG71: 9 | BH71: No
A72: KING WILLIAM COUNTY PUBLIC SCHOOLS | B72: 50 | Z72: 72 | AA72: 1 | AB72: No | AD72: 72 | AE72: 2 | AF72: No | AH72: 72 | AI72: 3 | AJ72: No | AL72: 72 | AM72: 4 | AN72: No | AT72: 72 | AU72: 6 | AV72: No | AX72: 72 | AY72: 97 | BF72: 72 | BG72: 9 | BH72: No
A73: LANCASTER COUNTY PUBLIC SCHOOLS | B73: 51 | Z73: 73 | AA73: 1 | AB73: Yes | AD73: 73 | AE73: 2 | AF73: Yes | AH73: 73 | AI73: 3 | AJ73: Yes | AL73: 73 | AM73: 4 | AN73: Yes | AT73: 73 | AU73: 6 | AV73: Yes | AX73: 73 | AY73: 97 | BF73: 73 | BG73: 9 | BH73: Yes
A74: LEE COUNTY PUBLIC SCHOOLS | B74: 52 | Z74: 74 | AA74: 1 | AB74: Yes | AD74: 74 | AE74: 2 | AF74: Yes | AH74: 74 | AI74: 3 | AJ74: Yes | AL74: 74 | AM74: 4 | AN74: Yes | AT74: 74 | AU74: 6 | AV74: Yes | AX74: 74 | AY74: 97 | BF74: 74 | BG74: 9 | BH74: Yes
A75: LEXINGTON CITY PUBLIC SCHOOLS | B75: 137 | Z75: 75 | AA75: 1 | AB75: No | AD75: 75 | AE75: 2 | AF75: No | AH75: 75 | AI75: 3 | AJ75: No | AL75: 75 | AM75: 4 | AN75: No | AT75: 75 | AU75: 6 | AV75: No | AX75: 75 | AY75: 97 | BF75: 75 | BG75: 9 | BH75: No
A76: LOUDOUN COUNTY PUBLIC SCHOOLS | B76: 53 | Z76: 77 | AA76: 1 | AB76: No | AD76: 77 | AE76: 2 | AF76: No | AH76: 77 | AI76: 3 | AJ76: No | AL76: 77 | AM76: 4 | AN76: No | AT76: 77 | AU76: 6 | AV76: No | AX76: 77 | AY76: 97 | BF76: 77 | BG76: 9 | BH76: No
A77: LOUISA COUNTY PUBLIC SCHOOLS | B77: 54 | Z77: 78 | AA77: 1 | AB77: Yes | AD77: 78 | AE77: 2 | AF77: Yes | AH77: 78 | AI77: 3 | AJ77: Yes | AL77: 78 | AM77: 4 | AN77: Yes | AT77: 78 | AU77: 6 | AV77: Yes | AX77: 78 | AY77: 97 | BF77: 78 | BG77: 9 | BH77: Yes
A78: LUNENBURG COUNTY PUBLIC SCHOOLS | B78: 55 | Z78: 79 | AA78: 1 | AB78: Yes | AD78: 79 | AE78: 2 | AF78: Yes | AH78: 79 | AI78: 3 | AJ78: Yes | AL78: 79 | AM78: 4 | AN78: Yes | AT78: 79 | AU78: 6 | AV78: Yes | AX78: 79 | AY78: 97 | BF78: 79 | BG78: 9 | BH78: Yes
A79: LYNCHBURG CITY PUBLIC SCHOOLS | B79: 115 | Z79: 80 | AA79: 1 | AB79: No | AD79: 80 | AE79: 2 | AF79: No | AH79: 80 | AI79: 3 | AJ79: No | AL79: 80 | AM79: 4 | AN79: No | AT79: 80 | AU79: 6 | AV79: No | AX79: 80 | AY79: 97 | BF79: 80 | BG79: 9 | BH79: No
A80: MADISON COUNTY PUBLIC SCHOOLS | B80: 56 | Z80: 81 | AA80: 1 | AB80: Yes | AD80: 81 | AE80: 2 | AF80: Yes | AH80: 81 | AI80: 3 | AJ80: Yes | AL80: 81 | AM80: 4 | AN80: Yes | AT80: 81 | AU80: 6 | AV80: Yes | AX80: 81 | AY80: 97 | BF80: 81 | BG80: 9 | BH80: Yes
A81: MANASSAS CITY PUBLIC SCHOOLS | B81: 143 | Z81: 82 | AA81: 1 | AB81: No | AD81: 82 | AE81: 2 | AF81: No | AH81: 82 | AI81: 3 | AJ81: No | AL81: 82 | AM81: 4 | AN81: No | AT81: 82 | AU81: 6 | AV81: No | AX81: 82 | AY81: 97 | BF81: 82 | BG81: 9 | BH81: No
A82: MANASSAS PARK CITY PUBLIC SCHOOLS | B82: 144 | Z82: 83 | AA82: 1 | AB82: No | AD82: 83 | AE82: 2 | AF82: No | AH82: 83 | AI82: 3 | AJ82: No | AL82: 83 | AM82: 4 | AN82: No | AT82: 83 | AU82: 6 | AV82: No | AX82: 83 | AY82: 97 | BF82: 83 | BG82: 9 | BH82: No
A83: MARTINSVILLE CITY PUBLIC SCHOOLS | B83: 116 | Z83: 84 | AA83: 1 | AB83: No | AD83: 84 | AE83: 2 | AF83: No | AH83: 84 | AI83: 3 | AJ83: No | AL83: 84 | AM83: 4 | AN83: No | AT83: 84 | AU83: 6 | AV83: No | AX83: 84 | AY83: 97 | BF83: 84 | BG83: 9 | BH83: No
A84: MATHEWS COUNTY PUBLIC SCHOOLS | B84: 57 | Z84: 85 | AA84: 1 | AB84: Yes | AD84: 85 | AE84: 2 | AF84: Yes | AH84: 85 | AI84: 3 | AJ84: Yes | AL84: 85 | AM84: 4 | AN84: Yes | AT84: 85 | AU84: 6 | AV84: Yes | AX84: 85 | AY84: 97 | BF84: 85 | BG84: 9 | BH84: Yes
A85: MCVH AUTHORITY | B85: 948 | Z85: 86 | AA85: 1 | AB85: No | AD85: 86 | AE85: 2 | AF85: No | AH85: 86 | AI85: 3 | AJ85: No | AL85: 86 | AM85: 4 | AN85: No | AT85: 86 | AU85: 6 | AV85: No | AX85: 86 | AY85: 97 | BF85: 86 | BG85: 9 | BH85: No
A86: MECKLENBURG COUNTY PUBLIC SCHOOLS | B86: 58 | Z86: 87 | AA86: 1 | AB86: No | AD86: 87 | AE86: 2 | AF86: No | AH86: 87 | AI86: 3 | AJ86: No | AL86: 87 | AM86: 4 | AN86: No | AT86: 87 | AU86: 6 | AV86: No | AX86: 87 | AY86: 97 | BF86: 87 | BG86: 9 | BH86: No
A87: MIDDLESEX COUNTY PUBLIC SCHOOLS | B87: 59 | Z87: 88 | AA87: 1 | AB87: No | AD87: 88 | AE87: 2 | AF87: No | AH87: 88 | AI87: 3 | AJ87: No | AL87: 88 | AM87: 4 | AN87: No | AT87: 88 | AU87: 6 | AV87: No | AX87: 88 | AY87: 97 | BF87: 88 | BG87: 9 | BH87: No
A88: MONTGOMERY COUNTY PUBLIC SCHOOLS | B88: 60 | Z88: 89 | AA88: 1 | AB88: Yes | AD88: 89 | AE88: 2 | AF88: Yes | AH88: 89 | AI88: 3 | AJ88: Yes | AL88: 89 | AM88: 4 | AN88: Yes | AT88: 89 | AU88: 6 | AV88: Yes | AX88: 89 | AY88: 97 | BF88: 89 | BG88: 9 | BH88: Yes
A89: NELSON COUNTY PUBLIC SCHOOLS | B89: 62 | Z89: 90 | AA89: 1 | AB89: Yes | AD89: 90 | AE89: 2 | AF89: Yes | AH89: 90 | AI89: 3 | AJ89: Yes | AL89: 90 | AM89: 4 | AN89: Yes | AT89: 90 | AU89: 6 | AV89: Yes | AX89: 90 | AY89: 97 | BF89: 90 | BG89: 9 | BH89: Yes
A90: NEW KENT COUNTY PUBLIC SCHOOLS | B90: 63 | Z90: 91 | AA90: 1 | AB90: Yes | AD90: 91 | AE90: 2 | AF90: Yes | AH90: 91 | AI90: 3 | AJ90: Yes | AL90: 91 | AM90: 4 | AN90: Yes | AT90: 91 | AU90: 6 | AV90: Yes | AX90: 91 | AY90: 97 | BF90: 91 | BG90: 9 | BH90: Yes
A91: NEWPORT NEWS CITY PUBLIC SCHOOLS | B91: 117 | Z91: 92 | AA91: 1 | AB91: No | AD91: 92 | AE91: 2 | AF91: No | AH91: 92 | AI91: 3 | AJ91: No | AL91: 92 | AM91: 4 | AN91: No | AT91: 92 | AU91: 6 | AV91: No | AX91: 92 | AY91: 97 | BF91: 92 | BG91: 9 | BH91: No
A92: NORFOLK CITY PUBLIC SCHOOLS | B92: 118 | Z92: 93 | AA92: 1 | AB92: Yes | AD92: 93 | AE92: 2 | AF92: Yes | AH92: 93 | AI92: 3 | AJ92: Yes | AL92: 93 | AM92: 4 | AN92: Yes | AT92: 93 | AU92: 6 | AV92: Yes | AX92: 93 | AY92: 97 | BF92: 93 | BG92: 9 | BH92: Yes
A93: NORTHAMPTON COUNTY PUBLIC SCHOOLS | B93: 65 | Z93: 94 | AA93: 1 | AB93: Yes | AD93: 94 | AE93: 2 | AF93: Yes | AH93: 94 | AI93: 3 | AJ93: Yes | AL93: 94 | AM93: 4 | AN93: Yes | AT93: 94 | AU93: 6 | AV93: Yes | AX93: 94 | AY93: 97 | BF93: 94 | BG93: 9 | BH93: Yes
A94: NORTHUMBERLAND COUNTY PUBLIC SCHOOLS | B94: 66 | Z94: 95 | AA94: 1 | AB94: Yes | AD94: 95 | AE94: 2 | AF94: Yes | AG94: 100252.69 | AH94: 95 | AI94: 3 | AJ94: Yes | AL94: 95 | AM94: 4 | AN94: Yes | AT94: 95 | AU94: 6 | AV94: Yes | AX94: 95 | AY94: 97 | BF94: 95 | BG94: 9 | BH94: Yes
A95: NORTON CITY PUBLIC SCHOOLS | B95: 119 | Z95: 96 | AA95: 1 | AB95: No | AD95: 96 | AE95: 2 | AF95: No | AH95: 96 | AI95: 3 | AJ95: No | AL95: 96 | AM95: 4 | AN95: No | AT95: 96 | AU95: 6 | AV95: No | AX95: 96 | AY95: 97 | BF95: 96 | BG95: 9 | BH95: No
A96: NOTTOWAY COUNTY PUBLIC SCHOOLS | B96: 67 | Z96: 97 | AA96: 1 | AB96: Yes | AD96: 97 | AE96: 2 | AF96: Yes | AH96: 97 | AI96: 3 | AJ96: Yes | AL96: 97 | AM96: 4 | AN96: Yes | AT96: 97 | AU96: 6 | AV96: Yes | AX96: 97 | AY96: 97 | BF96: 97 | BG96: 9 | BH96: Yes
A97: OLD DOMINION UNIVERSITY | B97: 798 | Z97: 98 | AA97: 1 | AB97: Yes | AD97: 98 | AE97: 2 | AF97: Yes | AH97: 98 | AI97: 3 | AJ97: Yes | AL97: 98 | AM97: 4 | AN97: Yes | AT97: 98 | AU97: 6 | AV97: Yes | AX97: 98 | AY97: 97 | BF97: 98 | BG97: 9 | BH97: Yes
A98: ORANGE COUNTY PUBLIC SCHOOLS | B98: 68 | Z98: 101 | AA98: 1 | AB98: No | AD98: 101 | AE98: 2 | AF98: No | AH98: 101 | AI98: 3 | AJ98: No | AL98: 101 | AM98: 4 | AN98: No | AT98: 101 | AU98: 6 | AV98: No | AX98: 101 | AY98: 97 | BF98: 101 | BG98: 9 | BH98: No
A99: PAGE COUNTY PUBLIC SCHOOLS | B99: 69 | Z99: 102 | AA99: 1 | AB99: Yes | AD99: 102 | AE99: 2 | AF99: Yes | AH99: 102 | AI99: 3 | AJ99: Yes | AL99: 102 | AM99: 4 | AN99: Yes | AT99: 102 | AU99: 6 | AV99: Yes | AX99: 102 | AY99: 97 | BF99: 102 | BG99: 9 | BH99: Yes
A100: PATRICK COUNTY PUBLIC SCHOOLS | B100: 70 | Z100: 103 | AA100: 1 | AB100: No | AD100: 103 | AE100: 2 | AF100: No | AH100: 103 | AI100: 3 | AJ100: No | AL100: 103 | AM100: 4 | AN100: No | AT100: 103 | AU100: 6 | AV100: No | AX100: 103 | AY100: 97 | BF100: 103 | BG100: 9 | BH100: No
A101: PETERSBURG CITY PUBLIC SCHOOLS | B101: 120 | Z101: 104 | AA101: 1 | AB101: Yes | AD101: 104 | AE101: 2 | AF101: Yes | AH101: 104 | AI101: 3 | AJ101: Yes | AL101: 104 | AM101: 4 | AN101: Yes | AT101: 104 | AU101: 6 | AV101: Yes | AX101: 104 | AY101: 97 | BF101: 104 | BG101: 9 | BH101: Yes
A102: PITTSYLVANIA COUNTY PUBLIC SCHOOLS | B102: 71 | Z102: 106 | AA102: 1 | AB102: Yes | AD102: 106 | AE102: 2 | AF102: Yes | AH102: 106 | AI102: 3 | AJ102: Yes | AL102: 106 | AM102: 4 | AN102: Yes | AT102: 106 | AU102: 6 | AV102: Yes | AX102: 106 | AY102: 97 | BF102: 106 | BG102: 9 | BH102: Yes
A103: POQUOSON CITY PUBLIC SCHOOLS | B103: 142 | Z103: 107 | AA103: 1 | AB103: No | AD103: 107 | AE103: 2 | AF103: No | AH103: 107 | AI103: 3 | AJ103: No | AL103: 107 | AM103: 4 | AN103: No | AT103: 107 | AU103: 6 | AV103: No | AX103: 107 | AY103: 97 | BF103: 107 | BG103: 9 | BH103: No
A104: PORTSMOUTH CITY PUBLIC SCHOOLS | B104: 121 | Z104: 108 | AA104: 1 | AB104: No | AD104: 108 | AE104: 2 | AF104: No | AH104: 108 | AI104: 3 | AJ104: No | AL104: 108 | AM104: 4 | AN104: No | AT104: 108 | AU104: 6 | AV104: No | AX104: 108 | AY104: 97 | BF104: 108 | BG104: 9 | BH104: No
A105: POWHATAN COUNTY PUBLIC SCHOOLS | B105: 72 | Z105: 109 | AA105: 1 | AB105: No | AD105: 109 | AE105: 2 | AF105: No | AH105: 109 | AI105: 3 | AJ105: No | AL105: 109 | AM105: 4 | AN105: No | AT105: 109 | AU105: 6 | AV105: No | AX105: 109 | AY105: 97 | BF105: 109 | BG105: 9 | BH105: No
A106: PRINCE EDWARD COUNTY PUBLIC SCHOOLS | B106: 73 | Z106: 110 | AA106: 1 | AB106: No | AD106: 110 | AE106: 2 | AF106: No | AH106: 110 | AI106: 3 | AJ106: No | AL106: 110 | AM106: 4 | AN106: No | AT106: 110 | AU106: 6 | AV106: No | AX106: 110 | AY106: 97 | BF106: 110 | BG106: 9 | BH106: No
A107: PRINCE GEORGE COUNTY PUBLIC SCHOOLS | B107: 74 | Z107: 111 | AA107: 1 | AB107: No | AD107: 111 | AE107: 2 | AF107: No | AH107: 111 | AI107: 3 | AJ107: No | AL107: 111 | AM107: 4 | AN107: No | AT107: 111 | AU107: 6 | AV107: No | AX107: 111 | AY107: 97 | BF107: 111 | BG107: 9 | BH107: No
A108: PRINCE WILLIAM COUNTY PUBLIC SCHOOLS | B108: 75 | Z108: 112 | AA108: 1 | AB108: No | AD108: 112 | AE108: 2 | AF108: No | AH108: 112 | AI108: 3 | AJ108: No | AL108: 112 | AM108: 4 | AN108: No | AT108: 112 | AU108: 6 | AV108: No | AX108: 112 | AY108: 97 | BF108: 112 | BG108: 9 | BH108: No
A109: PULASKI COUNTY PUBLIC SCHOOLS | B109: 77 | Z109: 113 | AA109: 1 | AB109: No | AD109: 113 | AE109: 2 | AF109: No | AH109: 113 | AI109: 3 | AJ109: No | AL109: 113 | AM109: 4 | AN109: No | AT109: 113 | AU109: 6 | AV109: No | AX109: 113 | AY109: 97 | BF109: 113 | BG109: 9 | BH109: No
A110: RADFORD CITY PUBLIC SCHOOLS | B110: 122 | Z110: 114 | AA110: 1 | AB110: Yes | AD110: 114 | AE110: 2 | AF110: Yes | AH110: 114 | AI110: 3 | AJ110: Yes | AL110: 114 | AM110: 4 | AN110: Yes | AT110: 114 | AU110: 6 | AV110: Yes | AX110: 114 | AY110: 97 | BF110: 114 | BG110: 9 | BH110: Yes
A111: RAPPAHANNOCK COUNTY PUBLIC SCHOOLS | B111: 78 | Z111: 115 | AA111: 1 | AB111: Yes | AD111: 115 | AE111: 2 | AF111: Yes | AH111: 115 | AI111: 3 | AJ111: Yes | AL111: 115 | AM111: 4 | AN111: Yes | AT111: 115 | AU111: 6 | AV111: Yes | AX111: 115 | AY111: 97 | BF111: 115 | BG111: 9 | BH111: Yes
A112: RICHMOND CITY PUBLIC SCHOOLS | B112: 123 | Z112: 116 | AA112: 1 | AB112: Yes | AD112: 116 | AE112: 2 | AF112: Yes | AH112: 116 | AI112: 3 | AJ112: Yes | AL112: 116 | AM112: 4 | AN112: Yes | AT112: 116 | AU112: 6 | AV112: Yes | AX112: 116 | AY112: 97 | BF112: 116 | BG112: 9 | BH112: Yes
A113: RICHMOND COUNTY PUBLIC SCHOOLS | B113: 79 | Z113: 117 | AA113: 1 | AB113: No | AD113: 117 | AE113: 2 | AF113: No | AH113: 117 | AI113: 3 | AJ113: No | AL113: 117 | AM113: 4 | AN113: No | AT113: 117 | AU113: 6 | AV113: No | AX113: 117 | AY113: 97 | BF113: 117 | BG113: 9 | BH113: No
A114: ROANOKE CITY PUBLIC SCHOOLS | B114: 124 | Z114: 118 | AA114: 1 | AB114: Yes | AD114: 118 | AE114: 2 | AF114: Yes | AH114: 118 | AI114: 3 | AJ114: Yes | AL114: 118 | AM114: 4 | AN114: Yes | AT114: 118 | AU114: 6 | AV114: Yes | AX114: 118 | AY114: 97 | BF114: 118 | BG114: 9 | BH114: Yes
A115: ROANOKE COUNTY PUBLIC SCHOOLS | B115: 80 | Z115: 119 | AA115: 1 | AB115: Yes | AD115: 119 | AE115: 2 | AF115: Yes | AH115: 119 | AI115: 3 | AJ115: Yes | AL115: 119 | AM115: 4 | AN115: Yes | AT115: 119 | AU115: 6 | AV115: Yes | AX115: 119 | AY115: 97 | BF115: 119 | BG115: 9 | BH115: Yes
A116: ROCKBRIDGE COUNTY PUBLIC SCHOOLS | B116: 81 | Z116: 120 | AA116: 1 | AB116: Yes | AD116: 120 | AE116: 2 | AF116: Yes | AH116: 120 | AI116: 3 | AJ116: Yes | AL116: 120 | AM116: 4 | AN116: Yes | AT116: 120 | AU116: 6 | AV116: Yes | AX116: 120 | AY116: 97 | BF116: 120 | BG116: 9 | BH116: Yes
A117: ROCKINGHAM COUNTY PUBLIC SCHOOLS | B117: 82 | Z117: 121 | AA117: 1 | AB117: Yes | AD117: 121 | AE117: 2 | AF117: Yes | AH117: 121 | AI117: 3 | AJ117: Yes | AL117: 121 | AM117: 4 | AN117: Yes | AT117: 121 | AU117: 6 | AV117: Yes | AX117: 121 | AY117: 97 | BF117: 121 | BG117: 9 | BH117: Yes
A118: RUSSELL COUNTY PUBLIC SCHOOLS | B118: 83 | Z118: 122 | AA118: 1 | AB118: No | AD118: 122 | AE118: 2 | AF118: No | AH118: 122 | AI118: 3 | AJ118: No | AL118: 122 | AM118: 4 | AN118: No | AT118: 122 | AU118: 6 | AV118: No | AX118: 122 | AY118: 97 | BF118: 122 | BG118: 9 | BH118: No
A119: SALEM CITY PUBLIC SCHOOLS | B119: 139 | Z119: 123 | AA119: 1 | AB119: No | AD119: 123 | AE119: 2 | AF119: No | AH119: 123 | AI119: 3 | AJ119: No | AL119: 123 | AM119: 4 | AN119: No | AT119: 123 | AU119: 6 | AV119: No | AX119: 123 | AY119: 97 | BF119: 123 | BG119: 9 | BH119: No
A120: SCOTT COUNTY PUBLIC SCHOOLS | B120: 84 | Z120: 124 | AA120: 1 | AB120: Yes | AD120: 124 | AE120: 2 | AF120: Yes | AH120: 124 | AI120: 3 | AJ120: Yes | AL120: 124 | AM120: 4 | AN120: Yes | AT120: 124 | AU120: 6 | AV120: Yes | AX120: 124 | AY120: 97 | BF120: 124 | BG120: 9 | BH120: Yes
A121: SHENANDOAH COUNTY PUBLIC SCHOOLS | B121: 85 | Z121: 126 | AA121: 1 | AB121: No | AD121: 126 | AE121: 2 | AF121: No | AH121: 126 | AI121: 3 | AJ121: No | AL121: 126 | AM121: 4 | AN121: No | AT121: 126 | AU121: 6 | AV121: No | AX121: 126 | AY121: 97 | BF121: 126 | BG121: 9 | BH121: No
A122: SMYTH COUNTY PUBLIC SCHOOLS | B122: 86 | Z122: 127 | AA122: 1 | AB122: Yes | AD122: 127 | AE122: 2 | AF122: Yes | AH122: 127 | AI122: 3 | AJ122: Yes | AL122: 127 | AM122: 4 | AN122: Yes | AT122: 127 | AU122: 6 | AV122: Yes | AX122: 127 | AY122: 97 | BF122: 127 | BG122: 9 | BH122: Yes
A123: SOUTHAMPTON COUNTY PUBLIC SCHOOLS | B123: 87 | Z123: 128 | AA123: 1 | AB123: No | AD123: 128 | AE123: 2 | AF123: No | AH123: 128 | AI123: 3 | AJ123: No | AL123: 128 | AM123: 4 | AN123: No | AT123: 128 | AU123: 6 | AV123: No | AX123: 128 | AY123: 97 | BF123: 128 | BG123: 9 | BH123: No
A124: SOUTHWESTERN VA TRAINING CENTER | B124: 951 | Z124: 130 | AA124: 1 | AB124: Yes | AD124: 130 | AE124: 2 | AF124: Yes | AH124: 130 | AI124: 3 | AJ124: Yes | AL124: 130 | AM124: 4 | AN124: Yes | AT124: 130 | AU124: 6 | AV124: Yes | AX124: 130 | AY124: 97 | BF124: 130 | BG124: 9 | BH124: Yes
A125: SPOTSYLVANIA COUNTY PUBLIC SCHOOLS | B125: 88 | Z125: 131 | AA125: 1 | AB125: Yes | AD125: 131 | AE125: 2 | AF125: Yes | AH125: 131 | AI125: 3 | AJ125: Yes | AL125: 131 | AM125: 4 | AN125: Yes | AT125: 131 | AU125: 6 | AV125: Yes | AX125: 131 | AY125: 97 | BF125: 131 | BG125: 9 | BH125: Yes
A126: STAFFORD COUNTY PUBLIC SCHOOLS | B126: 89 | Z126: 132 | AA126: 1 | AB126: Yes | AD126: 132 | AE126: 2 | AF126: Yes | AH126: 132 | AI126: 3 | AJ126: Yes | AL126: 132 | AM126: 4 | AN126: Yes | AT126: 132 | AU126: 6 | AV126: Yes | AX126: 132 | AY126: 97 | BF126: 132 | BG126: 9 | BH126: Yes
A127: STAUNTON CITY PUBLIC SCHOOLS | B127: 126 | Z127: 134 | AD127: 134 | AE127: 2 | AH127: 134 | AI127: 3 | AL127: 134 | AM127: 4 | AT127: 134 | AU127: 6 | AX127: 134 | AY127: 97 | BF127: 134 | BG127: 9
A128: SUFFOLK CITY PUBLIC SCHOOLS | B128: 127 | Z128: 135 | AA128: 1 | AB128: Yes | AD128: 135 | AE128: 2 | AF128: Yes | AH128: 135 | AI128: 3 | AJ128: Yes | AL128: 135 | AM128: 4 | AN128: Yes | AT128: 135 | AU128: 6 | AV128: Yes | AX128: 135 | AY128: 97 | BF128: 135 | BG128: 9 | BH128: Yes
A129: SURRY COUNTY PUBLIC SCHOOLS | B129: 90 | Z129: 136 | AA129: 1 | AB129: No | AD129: 136 | AE129: 2 | AF129: No | AH129: 136 | AI129: 3 | AJ129: No | AL129: 136 | AM129: 4 | AN129: No | AT129: 136 | AU129: 6 | AV129: No | AX129: 136 | AY129: 97 | BF129: 136 | BG129: 9 | BH129: No
A130: SUSSEX COUNTY PUBLIC SCHOOLS | B130: 91 | Z130: 137 | AA130: 1 | AB130: No | AD130: 137 | AE130: 2 | AF130: No | AH130: 137 | AI130: 3 | AJ130: No | AL130: 137 | AM130: 4 | AN130: No | AT130: 137 | AU130: 6 | AV130: No | AX130: 137 | AY130: 97 | BF130: 137 | BG130: 9 | BH130: No
A131: TAZEWELL COUNTY PUBLIC SCHOOLS | B131: 92 | Z131: 138 | AD131: 138 | AE131: 2 | AH131: 138 | AI131: 3 | AL131: 138 | AM131: 4 | AT131: 138 | AU131: 6 | AX131: 138 | AY131: 97 | BF131: 138 | BG131: 9
A132: VA BEACH CITY PUBLIC SCHOOLS | B132: 128 | Z132: 139 | AA132: 1 | AB132: Yes | AD132: 139 | AE132: 2 | AF132: Yes | AH132: 139 | AI132: 3 | AJ132: Yes | AL132: 139 | AM132: 4 | AN132: Yes | AT132: 139 | AU132: 6 | AV132: Yes | AX132: 139 | AY132: 97 | BF132: 139 | BG132: 9 | BH132: Yes
A133: VA DEPT OF CORRECTIONAL EDUCATION | B133: 900 | Z133: 140 | AA133: 1 | AD133: 140 | AE133: 2 | AH133: 140 | AI133: 3 | AL133: 140 | AM133: 4 | AT133: 140 | AU133: 6 | AX133: 140 | AY133: 97 | BF133: 140 | BG133: 9
A134: VIRGINIA COMMONWEALTH UNIVERSITY | B134: 881 | Z134: 142 | AB134: Yes | AD134: 142 | AE134: 2 | AF134: Yes | AH134: 142 | AI134: 3 | AJ134: Yes | AL134: 142 | AM134: 4 | AN134: Yes | AT134: 142 | AU134: 6 | AV134: Yes | AX134: 142 | AY134: 97 | BF134: 142 | BG134: 9 | BH134: Yes
A135: VSDB HAMPTON | B135: 219 | Z135: 143 | AA135: 1 | AB135: Yes | AD135: 143 | AE135: 2 | AF135: Yes | AH135: 143 | AI135: 3 | AJ135: Yes | AL135: 143 | AM135: 4 | AN135: Yes | AT135: 143 | AU135: 6 | AV135: Yes | AX135: 143 | AY135: 97 | BF135: 143 | BG135: 9 | BH135: Yes
A136: VSDB STAUNTON | B136: 218 | Z136: 144 | AA136: 1 | AB136: Yes | AD136: 144 | AE136: 2 | AF136: Yes | AH136: 144 | AI136: 3 | AJ136: Yes | AL136: 144 | AM136: 4 | AN136: Yes | AT136: 144 | AU136: 6 | AV136: Yes | AX136: 144 | AY136: 97 | BF136: 144 | BG136: 9 | BH136: Yes
A137: WARREN COUNTY PUBLIC SCHOOLS | B137: 93 | Z137: 202 | AA137: 1 | AB137: Yes | AD137: 202 | AE137: 2 | AF137: Yes | AH137: 202 | AI137: 3 | AJ137: Yes | AL137: 202 | AM137: 4 | AN137: Yes | AT137: 202 | AU137: 6 | AV137: Yes | AX137: 202 | AY137: 97 | BF137: 202 | BG137: 9 | BH137: Yes
A138: WASHINGTON COUNTY PUBLIC SCHOOLS | B138: 94 | Z138: 207 | AA138: 1 | AB138: Yes | AD138: 207 | AE138: 2 | AF138: Yes | AH138: 207 | AI138: 3 | AJ138: Yes | AL138: 207 | AM138: 4 | AN138: Yes | AT138: 207 | AU138: 6 | AV138: Yes | AX138: 207 | AY138: 97 | BF138: 207 | BG138: 9 | BH138: Yes
A139: WAYNESBORO CITY PUBLIC SCHOOLS | B139: 130 | Z139: 218 | AA139: 1 | AB139: No | AD139: 218 | AE139: 2 | AF139: No | AH139: 218 | AI139: 3 | AJ139: No | AL139: 218 | AM139: 4 | AN139: No | AT139: 218 | AU139: 6 | AV139: No | AX139: 218 | AY139: 97 | BF139: 218 | BG139: 9 | BH139: No
A140: WEST POINT TOWN PUBLIC SCHOOLS | B140: 207 | Z140: 219 | AD140: 219 | AE140: 2 | AH140: 219 | AI140: 3 | AL140: 219 | AM140: 4 | AT140: 219 | AU140: 6 | AX140: 219 | AY140: 97 | BF140: 219 | BG140: 9
A141: WESTMORELAND COUNTY PUBLIC SCHOOLS | B141: 95 | Z141: 871 | AD141: 871 | AE141: 2 | AG141: 233361.06 | AH141: 871 | AI141: 3 | AL141: 871 | AM141: 4 | AT141: 871 | AU141: 6 | AX141: 871 | AY141: 97 | BF141: 871 | BG141: 9
A142: WILLIAMSBURG CITY PUBLIC SCHOOLS | B142: 131 | Z142: 917 | AD142: 917 | AE142: 2 | AH142: 917 | AI142: 3 | AL142: 917 | AM142: 4 | AT142: 917 | AU142: 6 | AX142: 917 | AY142: 97 | BF142: 900 | BG142: 9
A143: WINCHESTER CITY PUBLIC SCHOOLS | B143: 132
A144: WISE COUNTY PUBLIC SCHOOLS | B144: 96 | AG144: =SUM(AG3:AG142) -> 884611.29 | AS144: =SUM(AS3:AS142) -> 0 | BA144: =SUM(BA3:BA142) -> 0
A145: WOODROW WILSON REHABILITATION CTR | B145: 947
A146: WYTHE COUNTY PUBLIC SCHOOLS | B146: 97
A147: YORK COUNTY PUBLIC SCHOOLS | B147: 98
Y149: 1
Y150: 2
Y151: 3
Y152: 4
Y153: 5
Y154: 6
Y155: 7
Y156: 8
Y157: 9
Y158: 10
Y159: 11
Y160: 12
Y161: 13
Y162: 14
Y163: 15
Y164: 16
Y165: 17
Y166: 18
Y167: 19
Y168: 20
Y169: 21
Y170: 22
Y171: 23
Y172: 24
Y173: 25
Y174: 26
Y175: 27
Y176: 28
Y177: 29
Y178: 30
Y179: 31
Y180: 32
Y181: 33
Y182: 34
Y183: 35
Y184: 36
Y185: 37
Y186: 38
Y187: 39
Y188: 40
Y189: 41
Y190: 42
Y191: 43
Y192: 44
Y193: 45
Y194: 46
Y195: 47
Y196: 48
Y197: 49
Y198: 50
Y199: 51
Y200: 52
Y201: 53
... 87 more rows

Sheet Sheet1 (hidden)
A2: Title II, Part A, Transferability
A3: Title IV, Part A, Transferability
